Cogmind - Beta 9.3 @@@ ROGUE MODE // 2019.12.18 @ 07:31:03 // Winter2019/RPGLIKE Player: spruce (@macklemurr) Result: Smashed by cave-in Performance ------------- Evolutions (8) 4000 Regions Visited (32) 6400 Robots Destroyed (476) 2380 Value Destroyed (22819) 22819 Prototype IDs (58) 1160 Alien Tech Used (8) 1600 Bonus (12180) 12180 TOTAL SCORE: 50539 Bonus ------- Triggered High Security 500 High Alert Combat Kills 6197 Follower Combat Kills 1925 Entered Garrisons 600 Used RIF Installer 1500 Network Hubs Disabled 800 Met Data Miner 300 Built Enhanced Grunts 300 A7 Reached Mainframe 300 Met R17 at Cetus 500 Hacked Protovariant 500 Scanned by Researcher 500 Pursued by Intercept 500 Friendly Fire -2242 Cogmind --------- Core Integrity 0/1850 Matter 300/300 Energy 716/720 System Corruption 16% Temperature Cool (4) Movement Flying (29) Location -2/Section 7 Parts ------- > --- POWER (3) -------- Particle Reactor Cooled Antimatter Reactor > --- PROPULSION (6) --- Xenon Bombardment Thruster Field Propulsion Drive Cooled Field Propulsion Drive Impulse Thruster Array > --- UTILITY (9) ------ Experimental Signal Interpreter Experimental Terrain Scanner Advanced Salvage Targeting Computer Experimental Targeting Computer Precision Energy Filter Matter Drive > --- WEAPON (4) ------- Null Cannon > --- INVENTORY (6) ---- Improved Stasis Canceller EMDS Peak State ------------ > --- POWER ------------ Particle Reactor Cooled Antimatter Reactor Light Quantum Reactor > --- PROPULSION ------- Myomer Exoskeleton Cooled Cesium-ion Thruster Impulse Thruster Array > --- UTILITY ---------- Experimental Signal Interpreter Experimental Terrain Scanner Advanced Salvage Targeting Computer Experimental Targeting Computer Precision Energy Filter Quantum Capacitor Reaction Control System EM Dispersion Field > --- WEAPON ----------- EMDS Core Stripper > --- INVENTORY -------- Experimental Phase Shifter Experimental Cloaking Device Core Reset Matrix [Rating: 199] Favorites ----------- Power Micro Nuclear Core Engine Deuterium Engine Power Core Micro Nuclear Core Reactor Cooled Antimatter Reactor Propulsion Cooled Cesium-ion Thruster Treads Light Treads Leg Improved Carbon-fiber Leg Hover Unit Aerolev Unit Flight Unit Cooled Cesium-ion Thruster Utility Advanced Signal Interpreter Device Precision Energy Filter Storage Improved Energy Well Processor Advanced Signal Interpreter Hackware System Shield Protection Hardened Medium Armor Plating Artifact Matter Drive Weapon Quantum Rifle Energy Gun Quantum Rifle Energy Cannon EMDS Ballistic Gun Improved Assault Rifle Ballistic Cannon Hardcell Cannon Launcher Containment Facilitator Special Weapon Remote Datajack Impact Weapon Core Stripper Build | -11 -10 -10 -9 -8 -8 -8 -8 -7 -7 -7 -7 -7 -7 -6 -6 -6 -6 -6 -5 -5 -5 -5 -4 -4 -4 -4 -4 -3 -3 -2 -2 -2 ------- Run | Scr Mat Min Mat Mat Gar Mat Gar Fac Was Fac Low Low Zio Pro Fac Low Low Dat Pro Fac Gar Fac Fac Ext Cet Arc Hub Res Qua Res Tes Sec Slots Evolved 18 | 3 . . 1 2 . 2 . 1 . 2 . . . . 2 . . . . 1 1 . . . . . . 1 . 2 . . Power 2 | . . . . . . . . . . 1 . . . . . . . . . . . . . . . . . . . 1 . . Propulsion 5 | 1 . . . . . . . . . 1 . . . . 1 . . . . . 1 . . . . . . . . 1 . . Utility 8 | 1 . . 1 2 . . . 1 . . . . . . 1 . . . . 1 . . . . . . . 1 . . . . Weapon 3 | 1 . . . . . 2 . . . . . . . . . . . . . . . . . . . . . . . . . . Parts Attached 247 | 3 4 5 9 12 1 12 1 11 3 11 2 4 . 1 7 2 5 6 1 10 8 9 6 4 3 2 25 8 12 11 27 22 Power 20 | 1 . 2 . 2 . 1 . 1 . 2 1 1 . . 1 . 1 . . . . 1 . . 1 . . 3 . 2 . . Engine 4 | 1 . 1 . 1 . 1 . . . . . . . . . . . . . . . . . . . . . . . . . . Core 11 | . . 1 . 1 . . . 1 . 2 1 1 . . 1 . 1 . . . . . . . . . . 2 . . . . Reactor 5 | . . . . . . . . . . . . . . . . . . . . . . 1 . . 1 . . 1 . 2 . . Propulsion 42 | . 1 1 1 3 . 2 . 2 1 2 . . . . . 2 . 2 . 1 . 6 5 . . . . 1 4 1 4 3 Treads 2 | . . . . . . 2 . . . . . . . . . . . . . . . . . . . . . . . . . . Leg 4 | . . . . . . . . 2 . . . . . . . . . 1 . . . . . . . . . . . . 1 . Wheel . | . . . . . . . . . . . . . . . . . . . . . . . . . . . . . . . . . Hover 4 | . . . . 3 . . . . . . . . . . . . . . . . . . . . . . . . 1 . . . Flight 32 | . 1 1 1 . . . . . 1 2 . . . . . 2 . 1 . 1 . 6 5 . . . . 1 3 1 3 3 Utility 88 | . 1 1 2 4 1 3 1 4 . 4 . 3 . . 3 . 2 3 . 4 2 1 1 2 . . 16 3 4 6 6 11 Device 63 | . . . 1 2 1 1 1 2 . 1 . 3 . . 1 . 1 2 . 2 1 1 1 2 . . 15 3 4 4 4 10 Storage 1 | . . . . . . . . . . . . . . . . . . 1 . . . . . . . . . . . . . . Processor 16 | . 1 1 1 1 . . . 2 . 2 . . . . 1 . 1 . . 1 1 . . . . . . . . 2 2 . Hackware 3 | . . . . 1 . . . . . . . . . . 1 . . . . 1 . . . . . . . . . . . . Protection 4 | . . . . . . 2 . . . 1 . . . . . . . . . . . . . . . . 1 . . . . . Artifact 1 | . . . . . . . . . . . . . . . . . . . . . . . . . . . . . . . . 1 Weapon 97 | 2 2 1 6 3 . 6 . 4 2 3 1 . . 1 3 . 2 1 1 5 6 1 . 2 2 2 9 1 4 2 17 8 Energy Gun 43 | 1 . 1 2 3 . 4 . 2 1 1 . . . . 3 . 1 . 1 3 4 1 . 2 1 1 5 1 1 1 2 1 Energy Cannon 23 | . 1 . . . . . . 2 . 2 . . . . . . . 1 . 2 . . . . . . 1 . . . 9 5 Ballistic Gun 15 | 1 1 . 4 . . 2 . . 1 . 1 . . . . . . . . . . . . . 1 1 3 . . . . . Ballistic Cannon 1 | . . . . . . . . . . . . . . . . . . . . . 1 . . . . . . . . . . . Launcher 7 | . . . . . . . . . . . . . . . . . . . . . . . . . . . . . . . 5 2 Special Weapon 3 | . . . . . . . . . . . . . . 1 . . 1 . . . 1 . . . . . . . . . . . Impact Weapon 5 | . . . . . . . . . . . . . . . . . . . . . . . . . . . . . 3 1 1 . Slashing Weapon . | . . . . . . . . . . . . . . . . . . . . . . . . . . . . . . . . . Piercing Weapon . | . . . . . . . . . . . . . . . . . . . . . . . . . . . . . . . . . Special Melee Weapon . | . . . . . . . . . . . . . . . . . . . . . . . . . . . . . . . . . Unidentified Prototypes 46 | . . . 3 1 . 1 . 1 . . . 1 . . 1 . . 3 . 1 . . 1 1 2 . 6 3 1 2 10 8 Parts Lost 24 | . . . 1 4 7 . . . . . 1 1 . . . . . 1 . . 1 . . . . . . 1 . . 1 6 Power 3 | . . . . 1 1 . . . . . . . . . . . . . . . . . . . . . . . . . . 1 Propulsion 6 | . . . . 1 1 . . . . . . . . . . . . . . . . . . . . . . 1 . . . 3 Utility 10 | . . . . 1 3 . . . . . 1 . . . . . . 1 . . 1 . . . . . . . . . 1 2 Weapon 5 | . . . 1 1 2 . . . . . . 1 . . . . . . . . . . . . . . . . . . . . Highest Loss Streak 6 | . . . 1 3 6 . . . . . 1 1 . . . . . 1 . . 1 . . . . . . 1 . . 1 2 Average Slot Usage (%) 86 | . 61 83 99 91 54 85 90 96 80 77 71 80 80 80 81 87 89 92 94 92 89 91 90 94 96 100 91 84 77 79 80 76 Engine 2 | . 14 3 13 6 . 8 8 3 . . . . . . . . . . . . . . . . . . . . . . . . Core 5 | . . 10 . 3 3 . . 3 7 6 9 13 13 13 12 11 11 11 11 11 10 8 5 5 5 5 5 5 5 1 . . Reactor 2 | . . . . . . . . . . . . . . . . . . . . . . 1 5 5 5 5 5 5 5 9 13 12 Treads 1 | . . . . . . 15 16 4 . . . . . . . . . . . . . . . . . . . . . . . . Flight 14 | . 10 18 26 . . . . . 5 8 13 13 13 13 12 16 17 17 17 16 15 17 16 26 26 26 26 24 19 19 21 18 Device 18 | . . . 4 17 10 6 14 18 23 22 13 14 26 26 18 17 18 21 23 21 18 21 25 26 26 26 19 25 25 24 21 20 Processor 15 | . 8 22 26 28 20 10 8 15 15 14 13 13 13 13 12 11 11 11 11 11 15 15 15 15 15 15 15 15 15 15 13 13 Hackware 1 | . . . . 2 8 . . . . . . . . . 5 5 5 5 5 9 7 4 . . . . . . . . . . Protection 1 | . . . . . . 16 9 7 7 4 . . . . . . . . . . . . . . . . 1 . . . . . Energy Gun 12 | . 11 1 8 6 4 22 25 12 10 14 13 12 6 6 15 23 23 22 17 16 18 21 21 15 17 21 11 4 . . . . Energy Cannon 3 | . 2 12 . . . . . 9 1 3 6 6 6 6 1 . . . 5 5 1 . . . . . 1 5 5 4 5 8 Ballistic Gun 3 | . 14 14 18 13 4 5 8 7 5 . 1 5 . . . . . . . . . . . . . . 3 . . . . . Naked Turns . | . . . . . . . . . . . . . . . . . . . . . . . . . . . . . . . . . Heaviest Build 109 | 8 10 16 17 22 17 39 39 41 40 37 35 47 44 47 47 46 52 57 60 61 63 68 68 67 68 64 109 70 68 93 109 106 Greatest Support 147 | 13 14 18 18 30 21 50 50 50 46 47 47 47 47 47 47 55 55 60 60 60 60 74 81 69 65 65 81 91 94 94 118 147 Greatest Overweight (x) 3 | . . . . 1 . 2 . 3 1 1 . . . . . . . 1 . 1 1 1 1 2 1 . 1 . 1 1 1 1 Average Overweight (x) . | . . . . . . . . . . . . . . . . . . . . . . . . . . . . . . . . . Largest Inventory Capacity 6 | . . . 3 3 3 3 3 3 3 3 3 3 3 3 3 3 3 4 4 4 4 4 4 4 4 5 5 5 5 5 5 6 Average Capacity 3 | . . . 2 3 3 3 3 3 3 3 3 3 3 3 3 3 3 3 4 4 4 4 4 4 4 4 5 5 5 5 5 5 Most Carried 6 | . . . 2 3 3 3 2 3 3 3 3 3 3 3 3 3 3 3 4 4 4 4 4 4 4 5 5 5 5 5 5 6 Average Carried 3 | . . . . 2 2 1 2 2 2 3 3 3 3 3 3 3 3 3 3 4 4 3 4 3 4 4 3 4 4 2 4 4 Final Capacity 6 | . . . 3 3 3 3 3 3 3 3 3 3 3 3 3 3 3 4 4 4 4 4 4 4 4 5 5 5 5 5 5 6 Final Carried 5 | . . . . 3 2 2 2 3 3 3 3 3 3 3 3 3 3 3 4 4 4 4 4 4 4 5 5 5 3 5 5 3 Class Distribution -------------------- 36% | Hacker-Scout 10% | Hacker-Tank 10% | Hacker-Gunner 8% | Hacker-Mutant 6% | Generator-Scout 4% | Mutant 4% | Scout 4% | Scavenger-Mutant 3% | Hacker-Skirmisher Dominant Class ---------------- Mutant | -10/Materials Mutant | -10/Mines Scavenger-Mutant | -9/Materials Scout | -8/Materials Hacker-Scout | -8/Garrison Hacker-Mutant | -8/Materials Hacker-Gunner | -8/Garrison Hacker-Skirmisher | -7/Factory Hacker-Scout | -7/Waste Hacker-Scout | -7/Factory Hacker-Scout | -7/Lower Caves Hacker-Scout | -7/Lower Caves Hacker-Scout | -7/Zion Hacker-Scout | -6/Proximity Caves Hacker-Scout | -6/Factory Hacker-Scout | -6/Lower Caves Hacker-Scout | -6/Lower Caves Hacker-Scout | -6/Data Miner Hacker-Tank | -5/Proximity Caves Hacker-Tank | -5/Factory Hacker-Gunner | -5/Garrison Hacker-Mutant | -5/Factory Hacker-Scout | -4/Factory Hacker-Scout | -4/Extension Hacker-Scout | -4/Cetus Hacker-Scout | -4/Archives Scavenger-Scout | -4/Hub_04(d) Hacker-Scout | -3/Research Hacker-Scout | -3/Quarantine Hacker-Scout | -2/Research Generator-Scout | -2/Testing Generator-Scout | -2/Section 7 Resources | -11 -10 -10 -9 -8 -8 -8 -8 -7 -7 -7 -7 -7 -7 -6 -6 -6 -6 -6 -5 -5 -5 -5 -4 -4 -4 -4 -4 -3 -3 -2 -2 -2 ----------- Run | Scr Mat Min Mat Mat Gar Mat Gar Fac Was Fac Low Low Zio Pro Fac Low Low Dat Pro Fac Gar Fac Fac Ext Cet Arc Hub Res Qua Res Tes Sec Matter Collected 5998 | 230 77 150 541 486 . 180 125 53 93 115 30 84 . 29 70 20 50 60 10 90 121 83 . 127 30 20 465 327 73 513 347 1399 Remotely . | . . . . . . . . . . . . . . . . . . . . . . . . . . . . . . . . . Salvage Created 22432 | . 226 294 1955 955 . 314 522 269 . 1328 423 1689 . 519 655 821 168 462 1734 480 1699 918 . 854 204 . 1032 445 73 1217 222 2954 Parts 1138 | . 21 27 125 81 1 36 33 15 . 63 17 65 . 34 23 32 11 15 90 22 74 65 . 39 21 2 74 15 1 33 7 96 Haulers Intercepted 15 | . . . 3 1 . . . . . 3 . 1 . . . . . . . . . . . . . . 2 1 . 1 . 3 Recyclers Shooed 3 | . . . 1 1 . 1 . . . . . . . . . . . . . . . . . . . . . . . . . . Parts Field Recycled . | . . . . . . . . . . . . . . . . . . . . . . . . . . . . . . . . . Retrieved Matter . | . . . . . . . . . . . . . . . . . . . . . . . . . . . . . . . . . Parts Self-Destructed 164 | . . . . . . . . . . . 3 30 . 22 . 25 12 . 72 . . . . . . . . . . . . . Prevented 95 | . . . . . . . . . . . 13 34 . 10 . 12 5 . 21 . . . . . . . . . . . . . Kills | -11 -10 -10 -9 -8 -8 -8 -8 -7 -7 -7 -7 -7 -7 -6 -6 -6 -6 -6 -5 -5 -5 -5 -4 -4 -4 -4 -4 -3 -3 -2 -2 -2 ------- Run | Scr Mat Min Mat Mat Gar Mat Gar Fac Was Fac Low Low Zio Pro Fac Low Low Dat Pro Fac Gar Fac Fac Ext Cet Arc Hub Res Qua Res Tes Sec Combat Hostiles Destroyed 392 | . 9 10 43 31 1 9 18 3 . 16 8 27 . 10 9 21 2 3 34 5 26 18 . 9 6 1 13 2 . 11 2 45 Melee 2 | . . . . . . . . . . . . . . . . . . . . . . . . . . . . . . 2 . . Guns 276 | . 9 7 43 31 1 9 16 2 . 14 5 17 . 3 7 17 2 3 26 4 19 16 . 9 5 1 10 . . . . . Cannons 55 | . . 3 . . . . . 1 . . . 2 . 7 1 . . . 7 . 4 . . . . . . 1 . 1 . 28 AOE 14 | . . . . . . . 2 . . . . 4 . . 1 2 . . 1 . 1 2 . . . . 1 . . . . . Classes Destroyed 18 | . 3 1 4 1 . 2 1 1 . 2 . 1 . . . . . . 1 . . . . . . . . . . . . 1 Worker 14 | . . . 2 2 . . . 1 . 1 . . . . . . . . . . . . . . . . 4 . . . . 4 Builder 6 | . . . . . . 2 . . . . . . . . . . . . . . . . . 2 . . 1 . . . . 1 Tunneler 2 | . . . . . . . . 1 . . . . . . . . . . . . . 1 . . . . . . . . . . Hauler 15 | . . . 3 1 . . . . . 3 . 1 . . . . . . . . . . . . . . 2 1 . 1 . 3 Recycler 3 | . . . . 1 . . . . . 2 . . . . . . . . . . . . . . . . . . . . . . Operator 5 | . . . 1 1 . . . . . . . . . . . . . . . 1 . . . . . . 1 1 . . . . Watcher 32 | . 2 . 3 2 . . . 2 . 3 . . . . . . . . . 1 . 1 . 1 1 . 3 3 2 5 2 1 Swarmer 95 | . 6 6 13 13 . 3 10 . . . . 4 . 6 . 10 . . 8 . . 10 . . 2 . . . . . . 4 Grunt 148 | . 3 2 20 13 1 2 6 . . 9 5 16 . . 6 7 . . 18 3 12 3 . 2 . . 2 1 . 2 . 15 Brawler 15 | . . . 1 1 . . 1 . . 1 1 2 . . . 1 . . 2 . 3 . . . . . . . . . 1 1 Duelist 12 | . . . . . . . 1 . . 1 1 2 . . . 2 . . 3 . . 1 . . . . . . . . . 1 Protector 4 | . . . . . . . . . . . . . . . . . . . 1 . . . . . . . 3 . . . . . Researcher 1 | . . . . . . . . . . . . . . . . . . . . . . . . . . . . . . . . 1 Sentry 60 | . . 2 9 4 . 3 . 3 . 3 . 1 . 1 2 1 . . 2 1 6 2 . 3 . 1 3 1 . 6 . 6 Demolisher 1 | . . . . . . . . . . . . . . . . . . . . . 1 . . . . . . . . . . . Hunter 19 | . . . . . . 1 . . . 2 1 2 . 2 . . 1 . . 1 2 1 . 2 . . . . . . . 4 Programmer 16 | . . . . . . . . . . . . 1 . 1 1 . 1 . . . 2 1 . 2 . . 1 . . 3 . 3 Cetus Guard 4 | . . . . . . . . . . . . . . . . . . . . . . . . . 4 . . . . . . . Enhanced Grunt 4 | . . . . . . . . . . . . . . . . . . 3 . . . . . . . . 1 . . . . . Lightning 4 | . . . . . . . . . . . . . . . . . . . . . . . . . . . 4 . . . . . Tracker 7 | . . . . . . . . . . . . . . . . . . . . . . . . . . . . . . . . 7 Combat Programmer 4 | . . . . . . . . . . . . . . . . . . . . . . . . . . . . . . . . 4 Protovariant P 1 | . . . . . . . . . . . . . . . . . . . . . . . . . . . . . . . 1 . Surgeon 1 | . . . . . . . . . . 1 . . . . . . . . . . . . . . . . . . . . . . Thug 2 | . . . . . . . . . . 2 . . . . . . . . . . . . . . . . . . . . . . Martyr 1 | . . . . . . . . . . 1 . . . . . . . . . . . . . . . . . . . . . . Best Kill Streak 27 | . 4 3 7 9 1 3 7 2 . 5 4 8 . 6 4 9 1 3 10 4 4 8 . 3 2 1 9 4 2 4 2 27 Combat Bots Only 26 | . 4 3 7 8 1 3 7 1 . 4 4 8 . 6 4 9 1 3 10 4 4 7 . 2 2 1 4 1 . 3 2 26 Max Kills in Single Turn 4 | . 2 1 1 1 1 1 2 1 . 3 1 2 . 1 1 2 1 1 1 1 1 2 . 2 1 1 4 1 1 2 1 2 Gunslinging 1 | . 1 . . . . . 1 . . . . 1 . . . 1 . . . . . 1 . 1 . . . . . . . . Exploded 2 | . . . . . . . 2 . . . . 2 . . 1 1 . . 1 . 1 1 . . . . 1 . . . . . Melee 1 | . . . . . . . . . . . . . . . . . . . . . . . . . . . . . . 1 . . Uniques/NPCs Destroyed . | . . . . . . . . . . . . . . . . . . . . . . . . . . . . . . . . . Combat | -11 -10 -10 -9 -8 -8 -8 -8 -7 -7 -7 -7 -7 -7 -6 -6 -6 -6 -6 -5 -5 -5 -5 -4 -4 -4 -4 -4 -3 -3 -2 -2 -2 -------- Run | Scr Mat Min Mat Mat Gar Mat Gar Fac Was Fac Low Low Zio Pro Fac Low Low Dat Pro Fac Gar Fac Fac Ext Cet Arc Hub Res Qua Res Tes Sec Damage Taken 19636 | . 632 338 1097 2026 929 474 565 269 84 758 402 1354 . 232 184 402 213 1141 517 85 935 924 53 686 120 . 894 299 119 329 93 3482 Core 15786 | . 520 282 897 1637 813 381 442 207 64 609 317 1095 . 182 157 318 173 914 405 63 725 731 40 557 94 . 684 234 97 247 80 2821 Absorbed by Shields 3894 | . . . . 246 180 . . . . . . 140 . 227 190 312 61 117 481 89 559 496 56 401 123 . 216 . . . . . Redirected to Core 12840 | . 355 183 665 1290 387 320 417 202 53 531 289 919 . 141 92 273 129 868 321 57 650 608 40 446 81 . 620 234 80 218 36 2335 Core Remaining (%) 64 | 100 . 23 44 . . . 24 . . . . . . 84 . . . . 100 . . 82 . . . . 69 . 52 . . . Volleys Fired 1191 | . 37 22 111 111 5 24 23 12 3 56 22 70 . 17 23 37 7 17 64 14 58 43 6 45 20 3 102 19 6 33 27 154 Largest 4 | . 2 2 2 2 2 4 4 4 2 3 2 4 . 2 4 4 3 4 4 4 4 4 4 3 4 4 4 1 1 1 2 2 Hottest 362 | . 70 80 98 92 88 174 174 199 110 175 110 203 . 120 260 260 185 260 319 329 347 347 318 282 362 362 362 240 240 70 200 200 Shots Fired 2641 | . 74 44 217 217 8 49 71 32 6 113 44 144 . 34 72 143 16 59 234 50 202 120 13 115 61 10 246 19 6 32 28 162 Gun 2249 | . 74 22 217 217 8 49 71 13 6 109 44 137 . 17 70 143 16 59 190 36 179 120 13 115 61 10 241 9 3 . . . Cannon 391 | . . 22 . . . . . 19 . 4 . 7 . 17 2 . . . 44 14 22 . . . . . 5 10 3 32 28 162 Launcher . | . . . . . . . . . . . . . . . . . . . . . . . . . . . . . . . . . Special 1 | . . . . . . . . . . . . . . . . . . . . . 1 . . . . . . . . . . . Kinetic 459 | . 37 22 152 136 3 15 22 1 1 . . 7 . . . . . . . . . . . . . . 63 . . . . . Thermal 1329 | . 37 22 65 81 5 7 21 4 . 4 . 7 . 17 46 69 10 29 157 38 158 93 9 112 61 10 178 9 3 . 11 66 Explosive . | . . . . . . . . . . . . . . . . . . . . . . . . . . . . . . . . . Electromagnetic 852 | . . . . . . 27 28 27 5 109 44 130 . 17 26 74 6 30 77 12 43 27 4 3 . . 5 10 3 32 17 96 Robot Hit Streak 77 | . 8 7 21 40 44 77 18 14 20 38 21 31 . 16 31 19 8 46 53 13 63 65 17 30 27 10 31 8 3 21 23 25 Robot Miss Streak 4 | . 4 4 2 3 . 1 2 1 . 3 1 2 . 1 1 2 2 1 3 1 1 2 2 3 3 . 2 1 . 1 1 2 Penetration Max 1 | . . . . . . . . . . . . . . . . . . . . . . . . . . . 1 1 . 1 . 1 Secondary Targets 50 | . 3 . 6 3 . . 5 . . 4 . 5 . . . 5 . 2 3 . 3 4 . 3 2 . 2 . . . . . Max Gunslinging Chain 1 | . 1 . 1 1 . . 1 . . 1 . 1 . . . 1 . 1 1 . 1 1 . 1 1 . 1 . . . . . Capacitor 192 | . . . . . . . . . . . . . . . . . . . . . . . . . . . . 12 3 32 26 119 Shots Hit Robots 2000 | . 47 25 157 187 8 39 57 17 6 88 40 128 . 29 49 112 12 56 166 35 163 93 2 71 49 10 169 6 4 41 14 120 Core Hits 831 | . 17 14 64 69 5 24 27 10 . 49 15 59 . 17 22 37 6 24 74 11 61 34 . 26 20 4 70 7 1 11 3 50 Critical Hits 63 | . . . . 2 . . . . . . . . . 1 1 3 . 2 3 3 1 . . . . . . 2 . 6 3 36 Critical Kills 26 | . . . . 1 . . . . . . . . . 1 . 1 . 2 1 2 1 . . . . . . 1 . 1 . 15 Critical Parts Destroyed 30 | . . . . 1 . . . . . . . . . . 1 2 . . 2 1 . . . . . . . 1 . 4 3 15 Melee Attacks 42 | . . . . . . . . . . . . . . . . . . . . . . . . . . . . . 6 30 6 . Kinetic 42 | . . . . . . . . . . . . . . . . . . . . . . . . . . . . . 6 30 6 . Impact . | . . . . . . . . . . . . . . . . . . . . . . . . . . . . . . . . . Slashing . | . . . . . . . . . . . . . . . . . . . . . . . . . . . . . . . . . Piercing . | . . . . . . . . . . . . . . . . . . . . . . . . . . . . . . . . . Sneak Attacks 1 | . . . . . . . . . . . . . . . . . . . . . . . . . . . . . . 1 . . Combat Hostiles . | . . . . . . . . . . . . . . . . . . . . . . . . . . . . . . . . . Follow-up Attacks . | . . . . . . . . . . . . . . . . . . . . . . . . . . . . . . . . . Damage Inflicted 54536 | . 519 448 2616 2991 136 700 1005 679 19 2461 801 2959 . 682 1157 2235 251 923 3960 737 4339 2479 54 2310 1414 313 6078 584 193 2279 387 8827 Guns 35801 | . 519 182 2616 2949 127 700 912 111 19 2038 751 2125 . 268 1058 2016 251 772 2909 590 3676 2376 54 2310 1414 313 4745 . . . . . Cannons 14213 | . . 266 . . . . . 358 . 69 . 180 . 379 26 . . . 812 147 579 . . . . . 88 584 84 1511 387 8743 Explosions 3582 | . . . . . . . 93 210 . 354 50 654 . 35 73 219 . 151 239 . 84 91 . . . . 1245 . . . . 84 Melee 877 | . . . . . . . . . . . . . . . . . . . . . . . . . . . . . 109 768 . . Ramming 63 | . . . . 42 9 . . . . . . . . . . . . . . . . 12 . . . . . . . . . . Kinetic 5571 | . 180 182 1486 1783 48 139 128 . 13 . . 89 . . . . . . . . . . . . . . 646 . 109 768 . . Thermal 29897 | . 339 266 1130 1166 79 115 507 233 . 69 50 834 . 414 791 1164 153 586 2833 520 3844 2240 . 2278 1414 313 4099 . . . . 4460 Explosive 354 | . . . . . . . . . . 354 . . . . . . . . . . . . . . . . . . . . . . Electromagnetic 18651 | . . . . . . 446 370 446 6 2038 751 2036 . 268 366 1071 98 337 1127 217 495 227 54 32 . . 1333 584 84 1511 387 4367 Impact . | . . . . . . . . . . . . . . . . . . . . . . . . . . . . . . . . . Slashing . | . . . . . . . . . . . . . . . . . . . . . . . . . . . . . . . . . Piercing . | . . . . . . . . . . . . . . . . . . . . . . . . . . . . . . . . . Highest Corruption 16 | . . . . 4 7 7 7 2 2 3 3 3 3 3 . . 1 1 1 . 3 6 . . . . 8 . . 2 3 16 Average Corruption 3 | . . . . 3 4 7 7 2 2 2 3 3 3 3 . . 1 1 1 . 2 3 . . . . 3 . . 1 2 7 Corruption Purged . | . . . . . . . . . . . . . . . . . . . . . . . . . . . . . . . . . Effects 210 | . . . . 2 6 22 19 4 . 7 4 16 3 8 . . 1 4 4 . 20 23 . . . . 15 . . 6 3 43 Message Errors 38 | . . . . . 3 4 . 1 . 2 . 1 . . . . . 1 1 . 7 5 . . . . 2 . . 2 1 8 Matter Fused 31 | . . . . 1 . 4 5 . . 1 2 2 2 1 . . . . . . 4 3 . . . . 1 . . . 1 4 Heat Flow Errors 19 | . . . . 1 . 3 2 2 . . 1 2 . 2 . . . . . . 3 2 . . . . 1 . . . . . Energy Discharges 22 | . . . . . 1 3 2 . . . . . . . . . . 1 . . 5 3 . . . . 1 . . 1 . 5 Parts Rejected 3 | . . . . . . . 1 . . . . . . . . . . . . . . . . . . . . . . . . 2 Data Loss (minor) 27 | . . . . . 1 4 3 1 . . . 3 1 2 . . 1 . . . 1 5 . . . . 2 . . 2 . 1 Data Loss (major) 1 | . . . . . . . . . . . . . . . . . . . . . . . . . . . . . . . . 1 Misfires 2 | . . . . . . . 1 . . . . . . . . . . . . . . . . . . . . . . . . 1 Misdirections 12 | . . . . . . . . . . . . . . . . . . . . . . . . . . . . . . . . 12 Targeting Errors 48 | . . . . . . 4 5 . . 4 1 6 . 3 . . . 2 2 . . 4 . . . . 7 . . . 1 9 Weapon Failures 7 | . . . . . 1 . . . . . . 2 . . . . . . 1 . . 1 . . . . 1 . . 1 . . Overload Shots 8 | . . . . . . . . . . . . . . . . . . . . . . . . . . . 3 2 3 . . . Effects 1 | . . . . . . . . . . . . . . . . . . . . . . . . . . . 1 . . . . . Energy Bleed 1 | . . . . . . . . . . . . . . . . . . . . . . . . . . . 1 . . . . . Overflow Damage 1201 | . . . . . . . . 57 . 33 . . . 5 . . . . 35 34 31 . . . . . 96 31 29 162 . 688 Projectiles 1061 | . . . . . . . . 57 . . . . . 5 . . . . 35 34 31 . . . . . 33 31 29 118 . 688 Explosions 96 | . . . . . . . . . . 33 . . . . . . . . . . . . . . . . 63 . . . . . Melee 44 | . . . . . . . . . . . . . . . . . . . . . . . . . . . . . . 44 . . Knockbacks 1 | . . . . 1 . . . . . . . . . . . . . . . . . . . . . . . . . . . . Impact 1 | . . . . 1 . . . . . . . . . . . . . . . . . . . . . . . . . . . . Kinetic . | . . . . . . . . . . . . . . . . . . . . . . . . . . . . . . . . . Secondary . | . . . . . . . . . . . . . . . . . . . . . . . . . . . . . . . . . Self-Inflicted Damage 737 | . . . . 19 3 . 24 120 . 91 48 21 . . 50 49 . . . . 20 31 . . . . 261 . . . . . Shots 15 | . . . . . . . 1 3 . 1 1 1 . . 1 1 . . . . 1 1 . . . . 4 . . . . . Rammed 12 | . . . . 7 4 . . . . . . . . . . . . . . . . 1 . . . . . . . . . . Targets Rammed 12 | . . . . 7 4 . . . . . . . . . . . . . . . . 1 . . . . . . . . . . Kicked . | . . . . . . . . . . . . . . . . . . . . . . . . . . . . . . . . . Crushed . | . . . . . . . . . . . . . . . . . . . . . . . . . . . . . . . . . Highest Temperature 490 | . 46 96 194 233 18 271 234 99 . . 81 118 . 172 2 21 . 42 178 136 364 362 72 65 93 98 324 247 . . 490 100 Average Temperature 59 | . 16 36 14 19 7 67 24 34 . . 81 65 . 86 2 6 . 14 58 52 102 104 41 27 24 27 115 73 . . 125 27 Received Heat Transfer 3668 | . 90 108 402 772 391 126 117 48 . 234 99 345 . 6 61 99 . 147 133 20 187 112 4 24 12 . 29 . 18 9 21 54 Effects 9 | . . . . . . . . . . . . . . . . . . . . . 2 3 . . . . 2 . . . 2 . Shutdowns 4 | . . . . . . . . . . . . . . . . . . . . . 1 1 . . . . . . . . 2 . Energy Bleed 2 | . . . . . . . . . . . . . . . . . . . . . 1 . . . . . 1 . . . . . Interference 3 | . . . . . . . . . . . . . . . . . . . . . . 2 . . . . 1 . . . . . Siege Activations . | . . . . . . . . . . . . . . . . . . . . . . . . . . . . . . . . . Robots Corrupted 51 | . . . . . . . . 1 . 4 3 4 . . . 2 . . . 1 . . . . . . 5 1 . 10 2 18 Combat Hostiles 41 | . . . . . . . . . . 2 3 4 . . . 2 . . . 1 . . . . . . 2 1 . 7 2 17 Parts Fried 138 | . . . . . . 1 3 5 . 14 6 9 . 2 . 9 . 4 1 4 . . . 1 2 . 12 9 . 20 1 35 Impact Corruptions . | . . . . . . . . . . . . . . . . . . . . . . . . . . . . . . . . . Robots Melted 3 | . . . . . . . . . . . . . . . . . . . . . 2 . . . 1 . . . . . . . Combat Hostiles 3 | . . . . . . . . . . . . . . . . . . . . . 2 . . . 1 . . . . . . . Parts Melted 80 | . 2 . 3 1 1 . 1 . . 1 . . . . 4 3 . 3 5 1 13 9 . 10 4 . 18 . . . . 1 Heat Transferred 35304 | . 999 555 1998 2368 185 185 766 187 . 74 50 872 . 568 1405 2001 235 1292 3248 618 3984 2548 . 2556 1703 370 4537 . . . . 2000 Parts Sabotaged . | . . . . . . . . . . . . . . . . . . . . . . . . . . . . . . . . . Parts Stolen . | . . . . . . . . . . . . . . . . . . . . . . . . . . . . . . . . . Parts Stripped . | . . . . . . . . . . . . . . . . . . . . . . . . . . . . . . . . . Power Chain Reactions 23 | . . . . . . . 1 . . . 1 9 . 1 1 3 . 2 1 . 1 1 . . . . 1 . . . . 1 Missiles Intercepted . | . . . . . . . . . . . . . . . . . . . . . . . . . . . . . . . . . Alert | -11 -10 -10 -9 -8 -8 -8 -8 -7 -7 -7 -7 -7 -7 -6 -6 -6 -6 -6 -5 -5 -5 -5 -4 -4 -4 -4 -4 -3 -3 -2 -2 -2 ------- Run | Scr Mat Min Mat Mat Gar Mat Gar Fac Was Fac Low Low Zio Pro Fac Low Low Dat Pro Fac Gar Fac Fac Ext Cet Arc Hub Res Qua Res Tes Sec Peak Influence 2129 | . 325 386 1213 823 448 280 496 478 89 953 . . . . 500 . . . . 514 1166 1198 387 801 766 511 2129 1195 674 835 694 1757 Average Influence 578 | . 172 265 600 616 439 179 292 218 58 579 . . . . 287 . . . . 335 794 742 362 535 534 464 786 1043 585 612 522 1153 Maximum Alert Level 5 | . 1 1 4 3 2 1 2 2 . 3 . . . . 2 . . . . 2 4 4 1 3 3 2 5 4 2 3 2 5 Low Security (%) 14 | 100 53 32 5 . . 63 25 48 100 11 . . . . 37 . . . . 21 . . . 2 . . 1 . . . . 4 Level 1 16 | . 46 67 26 . . 36 50 16 . 6 . . . . 40 . . . . 40 4 . 100 21 7 12 6 . . 19 4 3 Level 2 38 | . . . 30 79 100 . 23 35 . 45 . . . . 22 . . . . 38 35 65 . 68 81 87 25 . 100 31 95 11 Level 3 21 | . . . 29 20 . . . . . 37 . . . . . . . . . . 51 19 . 7 11 . 50 64 . 49 . 13 Level 4 7 | . . . 7 . . . . . . . . . . . . . . . . . 8 15 . . . . 11 35 . . . 51 Level 5 . | . . . . . . . . . . . . . . . . . . . . . . . . . . . 4 . . . . 2 High Security . | . . . . . . . . . . . . . . . . . . . . . . . . . . . . . . . . 12 Max Security . | . . . . . . . . . . . . . . . . . . . . . . . . . . . . . . . . . Squads Dispatched 77 | . 2 . 7 6 . . . 2 . 7 . 1 . . 4 . . . 1 2 . 6 . 3 . . 1 2 2 3 7 21 Investigation 17 | . 2 . 3 . . . . 2 . 5 . . . . 2 . . . . . . . . . . . . . . 1 2 . Extermination 7 | . . . . . . . . . . 1 . . . . 1 . . . . . . 1 . . . . . 1 . 1 1 1 Reinforcement 18 | . . . 2 3 . . . . . 1 . . . . . . . . . 1 . 2 . 2 . . . . 2 1 1 3 Assault 16 | . . . 2 1 . . . . . . . 1 . . . . . . 1 1 . 2 . 1 . . . 1 . . 2 4 Garrison 7 | . . . . 2 . . . . . . . . . . 1 . . . . . . 1 . . . . 1 . . . 1 1 Intercept 12 | . . . . . . . . . . . . . . . . . . . . . . . . . . . . . . . . 12 Construction Impeded 2 | . . . . . . . . . . . . . . . . . . . . . . . . 1 . . . . . . . 1 Haulers Reinforced 1 | . . . . . . . . . . . . . . . . . . . . . . . . . . . . . . . . 1 Stealth | -11 -10 -10 -9 -8 -8 -8 -8 -7 -7 -7 -7 -7 -7 -6 -6 -6 -6 -6 -5 -5 -5 -5 -4 -4 -4 -4 -4 -3 -3 -2 -2 -2 --------- Run | Scr Mat Min Mat Mat Gar Mat Gar Fac Was Fac Low Low Zio Pro Fac Low Low Dat Pro Fac Gar Fac Fac Ext Cet Arc Hub Res Qua Res Tes Sec Distress Signals 20 | . . . 3 2 . 1 . . . . . . . . . . . . . . . 1 . 1 2 . 3 . 1 4 . 2 Communications Jammed . | . . . . . . . . . . . . . . . . . . . . . . . . . . . . . . . . . Distress Signals . | . . . . . . . . . . . . . . . . . . . . . . . . . . . . . . . . . Times Spotted 649 | . 11 10 52 62 12 12 20 6 6 28 9 32 . 9 9 21 3 4 37 10 37 43 5 25 14 3 33 19 19 21 4 73 Peak Tracking Total 11 | . 4 2 7 11 9 4 7 1 5 4 3 8 . 4 3 9 2 4 8 4 5 9 4 7 5 1 7 9 10 10 2 9 Tactical Retreats 55 | . . . 1 4 1 1 2 . . 2 1 2 . . 1 2 . . 5 1 3 3 . 2 . . 2 5 3 3 . 11 Traps | -11 -10 -10 -9 -8 -8 -8 -8 -7 -7 -7 -7 -7 -7 -6 -6 -6 -6 -6 -5 -5 -5 -5 -4 -4 -4 -4 -4 -3 -3 -2 -2 -2 ------- Run | Scr Mat Min Mat Mat Gar Mat Gar Fac Was Fac Low Low Zio Pro Fac Low Low Dat Pro Fac Gar Fac Fac Ext Cet Arc Hub Res Qua Res Tes Sec Traps Triggered 38 | . . . . . 2 1 . 5 . 4 . . . . 1 . . . . . 11 2 . 2 . . 2 1 3 1 1 2 Indirectly 2 | . . . . . . . . 2 . . . . . . . . . . . . . . . . . . . . . . . . Trap Hack Attempts . | . . . . . . . . . . . . . . . . . . . . . . . . . . . . . . . . . Triggered . | . . . . . . . . . . . . . . . . . . . . . . . . . . . . . . . . . Disarmed . | . . . . . . . . . . . . . . . . . . . . . . . . . . . . . . . . . Reprogrammed . | . . . . . . . . . . . . . . . . . . . . . . . . . . . . . . . . . Reused . | . . . . . . . . . . . . . . . . . . . . . . . . . . . . . . . . . Traps Extracted . | . . . . . . . . . . . . . . . . . . . . . . . . . . . . . . . . . Installed . | . . . . . . . . . . . . . . . . . . . . . . . . . . . . . . . . . Triggered 2 | . . . . . . . . . . . . 1 . . . . . . . 1 . . . . . . . . . . . . Machines | -11 -10 -10 -9 -8 -8 -8 -8 -7 -7 -7 -7 -7 -7 -6 -6 -6 -6 -6 -5 -5 -5 -5 -4 -4 -4 -4 -4 -3 -3 -2 -2 -2 ---------- Run | Scr Mat Min Mat Mat Gar Mat Gar Fac Was Fac Low Low Zio Pro Fac Low Low Dat Pro Fac Gar Fac Fac Ext Cet Arc Hub Res Qua Res Tes Sec Machines Disabled 99 | . . . . 1 . . . 5 . 4 . . . . . . . . . 1 2 3 . 2 . . 47 3 3 3 6 19 Max in Single Turn 20 | . . . . 1 . . . 3 . 1 . . . . . . . . . 1 1 1 . 1 . . 20 1 1 1 1 1 Garrison Access 5 | . . . . . . . . . . . . . . . . . . . . 1 . 1 . . . . 1 . . . 1 1 Garrison Relay 2 | . . . . . . . . . . . . . . . . . . . . . 2 . . . . . . . . . . . Network Hub 4 | . . . . . . . . . . . . . . . . . . . . . . . . . . . 4 . . . . . Machines Sabotaged . | . . . . . . . . . . . . . . . . . . . . . . . . . . . . . . . . . Garrisons Compromised . | . . . . . . . . . . . . . . . . . . . . . . . . . . . . . . . . . Overloaded Fab Kills . | . . . . . . . . . . . . . . . . . . . . . . . . . . . . . . . . . Fab Network Shutdowns . | . . . . . . . . . . . . . . . . . . . . . . . . . . . . . . . . . Hacking | -11 -10 -10 -9 -8 -8 -8 -8 -7 -7 -7 -7 -7 -7 -6 -6 -6 -6 -6 -5 -5 -5 -5 -4 -4 -4 -4 -4 -3 -3 -2 -2 -2 --------- Run | Scr Mat Min Mat Mat Gar Mat Gar Fac Was Fac Low Low Zio Pro Fac Low Low Dat Pro Fac Gar Fac Fac Ext Cet Arc Hub Res Qua Res Tes Sec Machines Accessed 116 | . 5 . 11 5 . 4 . 4 . 13 . . . . 4 1 . 4 . 4 . 8 1 3 1 . 4 8 5 6 8 17 Terminals 83 | . 4 . 9 4 . 2 . 3 . 6 . . . . 2 . . . . 3 . 6 1 3 1 . 3 6 4 5 6 15 Fabricators 1 | . . . . . . . . . . . . . . . . . . . . . . 1 . . . . . . . . . . Repair Stations 3 | . . . 1 . . . . . . 1 . . . . . . . . . . . . . . . . . . . 1 . . Recycling Units 11 | . 1 . 1 . . 1 . 1 . 5 . . . . 1 . . . . . . . . . . . . 1 . . . . Scanalyzers 4 | . . . . . . . . . . . . . . . . . . . . . . . . . . . . 1 1 . 1 1 Garrison Access 9 | . . . . 1 . 1 . . . 1 . . . . 1 . . . . 1 . 1 . . . . 1 . . . 1 1 Total Hacks 385 | . 9 . 31 14 . 13 . 14 . 29 . . . . 11 1 . 29 . 10 . 22 2 6 2 . 13 22 16 22 48 71 Successful 203 | . 4 . 10 9 . 8 . 7 . 18 . . . . 5 1 . 29 . 6 . 11 1 3 1 . 8 8 7 9 25 33 Failed 181 | . 4 . 21 5 . 5 . 7 . 11 . . . . 6 . . . . 4 . 11 1 3 1 . 5 14 9 13 23 38 Catastrophic 40 | . 1 . 3 2 . . . . . 2 . . . . . . . . . . . 2 . . . . . 10 2 4 2 12 Database Lockouts 1 | . 1 . . . . . . . . . . . . . . . . . . . . . . . . . . . . . . . Manual 211 | . 4 . 28 13 . 11 . 13 . 26 . . . . 8 . . . . 8 . 18 2 . 1 . 9 9 7 9 17 28 Terminals 301 | . 8 . 28 13 . 9 . 12 . 19 . . . . 5 . . . . 9 . 18 2 6 2 . 12 18 15 21 41 63 Fabricators 2 | . . . . . . . . . . . . . . . . . . . . . . 2 . . . . . . . . . . Repair Stations 5 | . . . 2 . . . . . . 2 . . . . . . . . . . . . . . . . . . . 1 . . Recycling Units 18 | . 1 . 1 . . 3 . 2 . 6 . . . . 3 . . . . . . . . . . . . 2 . . . . Scanalyzers 6 | . . . . . . . . . . . . . . . . . . . . . . . . . . . . 2 1 . 1 2 Garrison Access 23 | . . . . 1 . 1 . . . 2 . . . . 3 . . . . 1 . 2 . . . . 1 . . . 6 6 Terminal Hacks 134 | . 3 . 4 6 . 2 . 5 . 7 . . . . 1 1 . 29 . 3 . 7 1 3 1 . 6 4 5 6 15 25 Record 18 | . . . . . . . . . . . . . . . . . . 10 . . . . . . . . . . 3 1 3 1 Part Schematic 11 | . . . . . . . . . . . . . . . . . . 10 . . . 1 . . . . . . . . . . Robot Schematic 6 | . . . . . . . . . . . . . . . . . . 6 . . . . . . . . . . . . . . Robot Analysis 10 | . 1 . . . . . . . . . . . . . 1 . . . . . . . . . . . 2 . 1 2 . 3 Prototype ID Bank 6 | . 1 . 1 . . . . . . . . . . . . . . 3 . . . . . . . . . . . . 1 . Open Door 11 | . . . . . . . . . . . . . . . . 1 . . . . . . . 3 1 . . 1 . . . 5 Level Access Points 2 | . . . . . . . . . . . . . . . . . . . . . . . . . . . 1 . . . 1 . Branch Access Points 6 | . . . 1 . . . . . . 1 . . . . . . . . . . . . 1 . . . . . . 2 1 . Emergency Access Points 1 | . . . . . . . . . . . . . . . . . . . . . . . . . . . . . . . 1 . Terminal Index 7 | . . . 1 . . 1 . 1 . 1 . . . . . . . . . 1 . 1 . . . . . . . . 1 . Fabricator Index 1 | . . . . . . . . . . . . . . . . . . . . . . 1 . . . . . . . . . . Recycling Unit Index 2 | . . . . . . . . 1 . 1 . . . . . . . . . . . . . . . . . . . . . . Scanalyzer Index 1 | . . . . . . . . . . . . . . . . . . . . . . . . . . . . . . . . 1 Garrison Index 4 | . . . . 1 . . . . . 1 . . . . . . . . . 1 . . . . . . 1 . . . . . Alert Level 4 | . 1 . . 3 . . . . . . . . . . . . . . . . . . . . . . . . . . . . Unreport Threat 20 | . . . . 2 . 1 . 2 . . . . . . . . . . . 1 . 3 . . . . 2 3 1 . 1 4 Locate Traps 1 | . . . . . . . . . . . . . . . . . . . . . . . . . . . . . . . . 1 Dispatch Records 1 | . . . . . . . . . . . . . . . . . . . . . . . . . . . . . . . . 1 Extermination Status 1 | . . . . . . . . . . . . . . . . . . . . . . . . . . . . . . . . 1 Assault Status 2 | . . . . . . . . 1 . . . . . . . . . . . . . . . . . . . . . . . 1 Recall Investigation 3 | . . . 1 . . . . . . . . . . . . . . . . . . . . . . . . . . . 1 1 Recall Reinforcements 3 | . . . . . . . . . . 1 . . . . . . . . . . . . . . . . . . . . 1 1 Recall Assault 2 | . . . . . . . . . . 1 . . . . . . . . . . . . . . . . . . . . . 1 Hauler Manifests 2 | . . . . . . . . . . . . . . . . . . . . . . . . . . . . . . . 1 1 Registered Components 1 | . . . . . . . . . . . . . . . . . . . . . . . . . . . . . . . . 1 Registered Prototypes 2 | . . . . . . . . . . . . . . . . . . . . . . . . . . . . . . . 1 1 Zone Layout 4 | . . . . . . . . . . 1 . . . . . . . . . . . 1 . . . . . . . 1 1 . Protovariant Controls 1 | . . . . . . . . . . . . . . . . . . . . . . . . . . . . . . . 1 . Activate Exoskeleton 1 | . . . . . . . . . . . . . . . . . . . . . . . . . . . . . . . . 1 Fabricator Hacks 2 | . . . . . . . . . . . . . . . . . . . . . . 2 . . . . . . . . . . Load Schematic 1 | . . . . . . . . . . . . . . . . . . . . . . 1 . . . . . . . . . . Build 1 | . . . . . . . . . . . . . . . . . . . . . . 1 . . . . . . . . . . Repair Station Hacks 5 | . . . 2 . . . . . . 2 . . . . . . . . . . . . . . . . . . . 1 . . Scan Component 3 | . . . 1 . . . . . . 1 . . . . . . . . . . . . . . . . . . . 1 . . Repair 2 | . . . 1 . . . . . . 1 . . . . . . . . . . . . . . . . . . . . . . Recycling Unit Hacks 2 | . . . . . . 1 . . . . . . . . . . . . . . . . . . . . . 1 . . . . Process 1 | . . . . . . 1 . . . . . . . . . . . . . . . . . . . . . . . . . . Report Inventory 1 | . . . . . . . . . . . . . . . . . . . . . . . . . . . . 1 . . . . Scanalyzer 6 | . . . . . . . . . . . . . . . . . . . . . . . . . . . . 2 1 . 1 2 Insert Component 5 | . . . . . . . . . . . . . . . . . . . . . . . . . . . . 1 1 . 1 2 Analyze 1 | . . . . . . . . . . . . . . . . . . . . . . . . . . . . 1 . . . . Garrison Access Hacks 5 | . . . . 1 . 1 . . . . . . . . . . . . . 1 . . . . . . 1 . . . . 1 Unlock Access 3 | . . . . 1 . 1 . . . . . . . . . . . . . 1 . . . . . . . . . . . . Seal Access 2 | . . . . . . . . . . . . . . . . . . . . . . . . . . . 1 . . . . 1 Unauthorized Hacks 139 | . 2 . 16 4 . 12 . 5 . 24 . . . . 10 . . . . 4 . 5 . . . . 4 3 3 6 20 21 Terminals 28 | . . . 3 2 . 3 . 1 . 3 . . . . . . . . . 2 . 1 . . . . 1 1 1 2 3 5 Track 3 | . . . . . . 1 . . . 1 . . . . . . . . . . . . . . . . . . . . . 1 Assimilate 6 | . . . . 1 . . . . . . . . . . . . . . . 1 . . . . . . 1 1 1 . 1 . Botnet 15 | . . . 3 1 . 1 . 1 . 2 . . . . . . . . . 1 . 1 . . . . . . . 2 1 2 Disrupt 1 | . . . . . . . . . . . . . . . . . . . . . . . . . . . . . . . . 1 Operators 3 | . . . . . . 1 . . . . . . . . . . . . . . . . . . . . . . . . 1 1 Fabricators . | . . . . . . . . . . . . . . . . . . . . . . . . . . . . . . . . . Repair Stations . | . . . . . . . . . . . . . . . . . . . . . . . . . . . . . . . . . Recycling Units 10 | . 1 . 1 . . 1 . 1 . 5 . . . . 1 . . . . . . . . . . . . . . . . . Reject 1 | . . . . . . 1 . . . . . . . . . . . . . . . . . . . . . . . . . . Tunnel 9 | . 1 . 1 . . . . 1 . 5 . . . . 1 . . . . . . . . . . . . . . . . . Scanalyzers . | . . . . . . . . . . . . . . . . . . . . . . . . . . . . . . . . . Garrison Access 11 | . . . . . . . . . . 1 . . . . 3 . . . . . . 1 . . . . . . . . 6 . Broadcast 1 | . . . . . . . . . . . . . . . . . . . . . . . . . . . . . . . 1 . Decoy 1 | . . . . . . . . . . . . . . . . . . . . . . . . . . . . . . . 1 . Redirect 2 | . . . . . . . . . . . . . . . 1 . . . . . . . . . . . . . . . 1 . Reprogram 3 | . . . . . . . . . . . . . . . 1 . . . . . . 1 . . . . . . . . 1 . Intercept 1 | . . . . . . . . . . . . . . . . . . . . . . . . . . . . . . . 1 . Watchers 3 | . . . . . . . . . . 1 . . . . 1 . . . . . . . . . . . . . . . 1 . Data Cores Recovered 2 | . . . . . . . . . . . . . . . . . . . . 1 . . . . . . . 1 . . . . Used 1 | . . . . . . . . . . . . . . . . . . . . 1 . . . . . . . . . . . . Hacking Detections 66 | . 2 . 9 3 . 3 . 3 . 6 . . . . 3 . . . . 3 . 7 1 1 . . 3 7 2 2 3 8 Full Trace Events 3 | . . . 2 . . . . . . . . . . . . . . . . . . . . . . . . . . . 1 . Feedback Events 1 | . . . . . . . . . . . . . . . . . . . . . . . . . . . . . . . 1 . Corruption 1 | . . . . . . . . . . . . . . . . . . . . . . . . . . . . . . . 1 . Feedback Blocked . | . . . . . . . . . . . . . . . . . . . . . . . . . . . . . . . . . Robot Schematics Acquired 6 | . . . . . . . . . . . . . . . . . . 6 . . . . . . . . . . . . . . Robots Built . | . . . . . . . . . . . . . . . . . . . . . . . . . . . . . . . . . Matter . | . . . . . . . . . . . . . . . . . . . . . . . . . . . . . . . . . Time . | . . . . . . . . . . . . . . . . . . . . . . . . . . . . . . . . . Total Robot Build Rating . | . . . . . . . . . . . . . . . . . . . . . . . . . . . . . . . . . Part Schematics Acquired 11 | . . . . . . . . . . . . . . . . . . 10 . . . . . . . . . 1 . . . . Parts Built 1 | . . . . . . . . . . . . . . . . . . . . . . 1 . . . . . . . . . . Matter 285 | . . . . . . . . . . . . . . . . . . . . . . 285 . . . . . . . . . . Time 76 | . . . . . . . . . . . . . . . . . . . . . . 76 . . . . . . . . . . Total Part Build Rating 5 | . . . . . . . . . . . . . . . . . . . . . . 5 . . . . . . . . . . Parts Repaired 2 | . . . 1 . . . . . . 1 . . . . . . . . . . . . . . . . . . . . . . Time 82 | . . . 26 . . . . . . 56 . . . . . . . . . . . . . . . . . . . . . . Parts Recycled . | . . . . . . . . . . . . . . . . . . . . . . . . . . . . . . . . . Recycled Matter 139 | . . . . . . 139 . . . . . . . . . . . . . . . . . . . . . . . . . . Retrieved Matter . | . . . . . . . . . . . . . . . . . . . . . . . . . . . . . . . . . Retrieved Components . | . . . . . . . . . . . . . . . . . . . . . . . . . . . . . . . . . Parts Scanalyzed 1 | . . . . . . . . . . . . . . . . . . . . . . . . . . . . 1 . . . . Part Schematics Acquired 1 | . . . . . . . . . . . . . . . . . . . . . . . . . . . . 1 . . . . Parts Damaged . | . . . . . . . . . . . . . . . . . . . . . . . . . . . . . . . . . Bothacking | -11 -10 -10 -9 -8 -8 -8 -8 -7 -7 -7 -7 -7 -7 -6 -6 -6 -6 -6 -5 -5 -5 -5 -4 -4 -4 -4 -4 -3 -3 -2 -2 -2 ------------ Run | Scr Mat Min Mat Mat Gar Mat Gar Fac Was Fac Low Low Zio Pro Fac Low Low Dat Pro Fac Gar Fac Fac Ext Cet Arc Hub Res Qua Res Tes Sec Used RIF Installer 3 | . . . . . 1 . 1 . . . . . . . . . . . . . 1 . . . . . . . . . . . Patrol Navigation 1 | . . . . . . . 1 . . . . . . . . . . . . . . . . . . . . . . . . . Alert ID Control 1 | . . . . . . . . . . . . . . . . . . . . . 1 . . . . . . . . . . . Robots Hacked 1 | . . . . . . . . . . . . . . . . . . . . . 1 . . . . . . . . . . . Non-combat . | . . . . . . . . . . . . . . . . . . . . . . . . . . . . . . . . . Combat . | . . . . . . . . . . . . . . . . . . . . . . . . . . . . . . . . . Robot Hacks Applied . | . . . . . . . . . . . . . . . . . . . . . . . . . . . . . . . . . Manual 1 | . . . . . . . . . . . . . . . . . . . . . 1 . . . . . . . . . . . Relay Couplers Released 7 | . . . . . . . . . . . . . . . . . . . . . 3 . . . . . 2 . . . 2 . Machine Destruction 7 | . . . . . . . . . . . . . . . . . . . . . 3 . . . . . 2 . . . 2 . Robots Rewired 16 | . . . . . . . . . . . . 1 . . . 2 . . 2 . . . . 11 . . . . . . . . Allies Hacked 2 | . . . . . . . . . . . . . . . . . . . . . . . . . . . . . 1 . 1 . Hacks Repelled . | . . . . . . . . . . . . . . . . . . . . . . . . . . . . . . . . . Allies | -11 -10 -10 -9 -8 -8 -8 -8 -7 -7 -7 -7 -7 -7 -6 -6 -6 -6 -6 -5 -5 -5 -5 -4 -4 -4 -4 -4 -3 -3 -2 -2 -2 -------- Run | Scr Mat Min Mat Mat Gar Mat Gar Fac Was Fac Low Low Zio Pro Fac Low Low Dat Pro Fac Gar Fac Fac Ext Cet Arc Hub Res Qua Res Tes Sec Total Allies 57 | . . . . . . . . . 19 . . 1 . . 2 2 . . 2 1 1 1 . 14 5 . 1 1 1 . 3 3 Largest Group 19 | . . . . . . . . . 19 9 . 1 . . 2 2 2 1 2 1 1 1 . 11 6 6 5 1 1 . 2 3 Highest-Rated Group 626 | . . . . . . . . . 487 279 . 30 . . 64 64 64 32 78 26 81 41 . 576 626 626 463 44 44 . 138 138 Highest-Rated Ally 156 | . . . . . . . . . 35 35 . 30 . . 32 32 32 32 49 26 81 41 . 156 156 156 94 44 44 . 69 46 Total Orders . | . . . . . . . . . . . . . . . . . . . . . . . . . . . . . . . . . Ally Attacks 372 | . . . . . . . . . 91 61 . 9 . . . 2 1 1 5 . 26 8 . 35 54 10 45 . . . 8 16 Total Damage 12721 | . . . . . . . . . 4113 1150 . 245 . . . 74 9 33 199 . 1210 218 . 979 1536 409 1594 . . . 554 398 Kills 69 | . . . . . . . . . 14 11 . 1 . . . 1 1 . 1 . 6 3 . 7 8 3 8 . . . 4 1 Allies Corrupted 4 | . . . . . . . . . . 1 . . . . . . . . . . . . . . . . 3 . . . . . Allies Melted . | . . . . . . . . . . . . . . . . . . . . . . . . . . . . . . . . . Intel | -11 -10 -10 -9 -8 -8 -8 -8 -7 -7 -7 -7 -7 -7 -6 -6 -6 -6 -6 -5 -5 -5 -5 -4 -4 -4 -4 -4 -3 -3 -2 -2 -2 ------- Run | Scr Mat Min Mat Mat Gar Mat Gar Fac Was Fac Low Low Zio Pro Fac Low Low Dat Pro Fac Gar Fac Fac Ext Cet Arc Hub Res Qua Res Tes Sec Robot Analysis Total 10 | . 1 . . . . . . . . . . . . . 1 . . . . . . . . . . . 2 . 1 2 . 3 Derelict Logs Recovered 8 | . . 1 . . . . . . . . 2 3 . . . . 1 . 1 . . . . . . . . . . . . . Drone Launches . | . . . . . . . . . . . . . . . . . . . . . . . . . . . . . . . . . Drone Recoveries . | . . . . . . . . . . . . . . . . . . . . . . . . . . . . . . . . . Exploration | -11 -10 -10 -9 -8 -8 -8 -8 -7 -7 -7 -7 -7 -7 -6 -6 -6 -6 -6 -5 -5 -5 -5 -4 -4 -4 -4 -4 -3 -3 -2 -2 -2 ------------- Run | Scr Mat Min Mat Mat Gar Mat Gar Fac Was Fac Low Low Zio Pro Fac Low Low Dat Pro Fac Gar Fac Fac Ext Cet Arc Hub Res Qua Res Tes Sec Turns Passed 15075 | 21 255 271 811 886 201 646 544 774 203 859 251 583 87 291 331 394 212 111 840 242 1205 800 193 501 299 55 639 377 268 692 343 890 Spaces Moved 17373 | 32 283 461 798 477 253 327 267 518 249 1134 349 601 132 331 453 442 424 115 687 399 953 963 234 485 223 54 818 826 627 1217 787 1454 Core 500 | 32 26 . . 142 197 69 . 1 . 4 . . . . . . . . . . . . . 5 . . . . . . . 24 Treads 633 | . . . . . . 258 267 108 . . . . . . . . . . . . . . . . . . . . . . . . Legs 433 | . . . . . . . . 409 24 . . . . . . . . . . . . . . . . . . . . . . . Wheels . | . . . . . . . . . . . . . . . . . . . . . . . . . . . . . . . . . Hover 385 | . . . . 329 56 . . . . . . . . . . . . . . . . . . . . . . . . . . . Flight 15422 | . 257 461 798 6 . . . . 225 1130 349 601 132 331 453 442 424 115 687 399 953 963 234 480 223 54 818 826 627 1217 787 1430 Fastest Speed 5 | 50 40 37 37 37 50 50 160 120 40 37 37 37 37 37 37 34 34 34 34 34 34 31 17 20 23 23 11 5 17 25 15 21 Average Speed 44 | 50 40 38 37 65 50 139 160 128 48 39 37 37 37 37 37 34 34 34 34 36 72 56 38 24 29 23 24 21 29 27 25 32 Slowest Speed 200 | 50 50 40 37 120 50 180 160 200 120 100 37 37 37 37 37 37 34 117 34 114 114 117 107 150 103 23 103 23 114 103 114 120 Overloaded Moves 465 | . . . . . . . . . . . . . . . . . . . . . . . 26 12 . . 74 171 16 . 85 81 Propulsion Burnouts 2 | . . . . . . . . . . . . . . . . . . . . . . . . . . . . 1 . . . 1 Robots Hopped 123 | . 3 10 6 . . . . . . 22 . 1 . . 4 . . . . 4 1 13 . 10 . . 12 6 18 3 3 7 Cave-ins Triggered 4 | . . . . . . . . . . . . . . . . . . . . . . . . 2 . . . . . . . 2 Teleports 1 | . . . . . . . . . . . . . . . . . . . . . . . . . . . . . . . . 1 Exploration Rate (%) 50 | 4 58 82 76 51 67 26 46 17 86 23 51 64 11 64 11 58 64 70 78 15 74 28 7 56 67 68 72 28 62 34 71 85 Regions Visited 32 Branch Regions 16 Pre-discovered Areas 11 | . 1 . 1 . . . . 1 . 5 1 . . . 1 . . 1 . . . . . . . . . . . . . . Known Exits Taken 24 | . . . 1 1 . 1 . . . 1 1 1 1 1 1 1 1 1 1 1 . 1 1 1 1 1 1 1 1 1 1 . Unknown Exits Taken 3 | 1 1 1 . . . . . . . . . . . . . . . . . . . . . . . . . . . . . . Scrap Searched 12 | . . 2 . . . . . . . . 1 3 . 1 . 1 4 . . . . . . . . . . . . . . . Spaces Dug 89 | . . . . . . . . . . 1 . . . . . . . . . 1 . 10 6 24 . . 5 7 6 14 9 6 Terrain Destroyed 1003 | . . . . . . . 8 38 . 15 10 35 . 7 9 17 . 6 40 8 7 18 9 36 7 . 677 7 6 14 11 18 Melee 22 | . . . . . . . . . . . . . . . . . . . . . . . . . . . . . 4 14 4 . Projectile 195 | . . . . . . . . . . 2 . 2 . 2 . . . . 37 8 7 18 9 36 7 . 42 7 2 . 7 9 AOE 786 | . . . . . . . 8 38 . 13 10 33 . 5 9 17 . 6 3 . . . . . . . 635 . . . . 9 Actions | -11 -10 -10 -9 -8 -8 -8 -8 -7 -7 -7 -7 -7 -7 -6 -6 -6 -6 -6 -5 -5 -5 -5 -4 -4 -4 -4 -4 -3 -3 -2 -2 -2 --------- Run | Scr Mat Min Mat Mat Gar Mat Gar Fac Was Fac Low Low Zio Pro Fac Low Low Dat Pro Fac Gar Fac Fac Ext Cet Arc Hub Res Qua Res Tes Sec Total 22506 | 34 347 497 1089 831 317 470 332 601 328 1406 425 820 169 464 558 593 476 146 1129 455 1324 1114 325 769 409 88 1062 1009 678 1516 911 1814 Wait 2528 | . 17 8 129 157 46 71 10 39 38 161 30 93 38 109 70 57 30 . 297 28 132 63 76 103 142 28 84 150 34 192 23 73 Move 17098 | 31 276 440 785 476 251 326 265 518 248 1094 348 598 131 330 444 441 423 114 686 390 949 936 233 463 222 53 794 813 592 1210 780 1438 Hop 114 | . 3 10 6 . . . . . . 17 . 1 . . 4 . . . . 4 1 13 . 9 . . 11 6 16 3 3 7 Pick Up 39 | . . . 2 2 . 5 . 2 3 . . . . . . . . . 1 . . 1 . 1 . . 3 4 1 3 3 8 Fast Attach 217 | 3 4 5 7 10 . 10 1 11 1 10 2 4 . 1 7 2 5 6 1 10 8 7 6 3 3 1 17 6 9 10 20 27 Attach 31 | . . . 2 2 1 2 . . 2 . . . . . . . . . . . . 1 . 1 . . 3 2 3 1 6 5 Detach 28 | . . . . 4 . . . . 1 . . . . . . . . . . . . . . . . 1 6 . 3 2 7 4 Swap 11 | . . . . . . . . . . 1 . . . . . . . . . . . 1 . . . 1 5 . . . 2 1 Drop 184 | . 2 3 6 5 . 5 . 10 9 4 . 3 . . 6 1 4 5 1 9 7 8 4 5 2 . 13 9 8 11 21 23 Fire 1191 | . 37 22 111 111 5 24 23 12 3 56 22 70 . 17 23 37 7 17 64 14 58 43 6 45 20 3 102 19 6 33 27 154 Melee 42 | . . . . . . . . . . . . . . . . . . . . . . . . . . . . . 6 30 6 . Ram 12 | . . . . 7 4 . . . . . . . . . . . . . . . . 1 . . . . . . . . . . Kick . | . . . . . . . . . . . . . . . . . . . . . . . . . . . . . . . . . Crush . | . . . . . . . . . . . . . . . . . . . . . . . . . . . . . . . . . Escape Stasis 204 | . . . . . 10 . . . . . . . . . . . . . . . 126 18 . 45 . . . . . . . 5 Rewire 87 | . . . . . . . 8 . . . . 7 . . . 16 . . 4 . . . . 52 . . . . . . . . Trap . | . . . . . . . . . . . . . . . . . . . . . . . . . . . . . . . . . Miscellaneous 720 | . 8 9 41 57 . 27 25 9 23 63 23 44 . 7 4 39 7 4 75 . 43 22 . 42 20 1 24 . . 21 13 69 Route ------- -11/Scrapyard -10/Materials (discovered 3 exits: *Mat x2 / [*Min]) -10/Mines (discovered 2 exits: *Mat x2) -9/Materials (discovered 6 exits: *Mat x3 / *Min x2 / Sto) -8/Materials -8/Garrison (discovered 3 exits: *Mat x3) -8/Materials (discovered 2 exits: *Fac / Gar) -8/Garrison (discovered 2 exits: *Fac x2) -7/Factory (discovered 2 exits: *Fac x2) -7/Waste -7/Factory (discovered 3 exits: Fac / *Low x2) -7/Lower Caves -7/Lower Caves (discovered 2 exits: *Fac / *Zio) -7/Zion -6/Proximity Caves -6/Factory (discovered 3 exits: *Fac x2 / *Low) -6/Lower Caves -6/Lower Caves -6/Data Miner -5/Proximity Caves -5/Factory (discovered 2 exits: Upp / Gar) -5/Garrison (discovered 3 exits: *Fac x3) -5/Factory -4/Factory (discovered 4 exits: *Upp x2 / *Ext x2) -4/Extension (discovered 2 exits: *Res / *Cet) -4/Cetus (discovered 2 exits: *Res / *Arc) -4/Archives (discovered 3 exits: Res / *Hub x2) -4/Hub_04(d) (discovered 4 exits: *Res x4) -3/Research (discovered 2 exits: *Qua x2) -3/Quarantine -2/Research (discovered 4 exits: *Acc x2 / *Tes x2) -2/Testing (discovered 2 exits: *Acc / *Sec) -2/Section 7 (discovered 1 exit: *Acc) History --------- Turn | Location | Event 5 | -11/Scrapyard | Discovered new exit (range 16) 8 | -11/Scrapyard | Upgraded with Propulsion slot (x1) 8 | -11/Scrapyard | Upgraded with Utility slot (x1) 8 | -11/Scrapyard | Upgraded with Weapon slot (x1) 22 | -11/Scrapyard | Entered Materials 65 | -10/Materials | Core integrity fell below 50% 104 | -10/Materials | Discovered new exit (range 7) 130 | -10/Materials | Discovered new exit (range 11) 179 | -10/Materials | Discovered new exit (range 18) 190 | -10/Materials | Central database locked down 221 | -10/Materials | Core integrity fell below 20% 277 | -10/Materials | Entered Mines 279 | -10/Mines | Reached level 2 283 | -10/Mines | Met a Derelict bent on vengeance 321 | -10/Mines | Discovered new exit (range 7) 331 | -10/Mines | Build established: Mutant 341 | -10/Mines | Discovered new exit (range 8) 388 | -10/Mines | Learned Materials terminal intel 548 | -10/Mines | Entered Materials 549 | -9/Materials | Loaded intel: 12 terminal locations 549 | -9/Materials | Core integrity fell below 50% 550 | -9/Materials | Reached level 3 557 | -9/Materials | Reached level 4 577 | -9/Materials | Identified exit to Mines 577 | -9/Materials | Identified exit to Storage 659 | -9/Materials | Core integrity fell below 20% 761 | -9/Materials | Build established: Scavenger-Mutant 839 | -9/Materials | Reached level 5 917 | -9/Materials | Discovered new exit (range 5) 951 | -9/Materials | Repaired Flight Unit 1018 | -9/Materials | Destroyed 7 combat bots 1033 | -9/Materials | Reached level 6 1059 | -9/Materials | Upgraded with Utility slot (x1) 1161 | -9/Materials | Discovered new exit (range 15) 1220 | -9/Materials | Reached level 7 1258 | -9/Materials | Discovered new exit (range 15) 1346 | -9/Materials | Build established: Scout 1348 | -9/Materials | First assault squad dispatched 1359 | -9/Materials | Identified exit to Materials 1359 | -9/Materials | Entered another Materials area 1360 | -8/Materials | Core integrity fell below 50% 1361 | -8/Materials | Reached level 8 1363 | -8/Materials | Upgraded with Utility slot (x2) 1474 | -8/Materials | Reached level 9 1650 | -8/Materials | Build established: Skirmisher 1766 | -8/Materials | Reached level 10 1796 | -8/Materials | Destroyed 8 combat bots 1963 | -8/Materials | Build established: Scout 2055 | -8/Materials | Reached level 11 2131 | -8/Materials | Garrison activated, responded to threat 2159 | -8/Materials | First assault squad dispatched 2228 | -8/Materials | Core integrity fell below 20% 2245 | -8/Materials | Identified exit to Garrison 2245 | -8/Materials | Entered Garrison 2266 | -8/Garrison | Lost 3 parts (1n1u1w) 2308 | -8/Garrison | Build established: Hacker-Scout 2336 | -8/Garrison | Triggered checkpoint 2345 | -8/Garrison | Discovered new exit (range 18) 2370 | -8/Garrison | Triggered checkpoint 2390 | -8/Garrison | Discovered new exit (range 10) 2392 | -8/Garrison | Lost 6 parts (1p1n2u2w) 2435 | -8/Garrison | Discovered new exit (range 12) 2444 | -8/Garrison | Installed Relay Interface Framework 2446 | -8/Garrison | Entered Materials 2607 | -8/Materials | Reached level 12 2645 | -8/Materials | Upgraded with Weapon slot (x2) 3014 | -8/Materials | Discovered new exit (range 15) 3090 | -8/Materials | Identified exit to Garrison 3092 | -8/Materials | Entered Garrison 3157 | -8/Garrison | Build established: Hacker-Mutant 3190 | -8/Garrison | Triggered checkpoint 3267 | -8/Garrison | Destroyed 7 combat bots 3333 | -8/Garrison | Discovered new exit (range 10) 3334 | -8/Garrison | Triggered checkpoint 3450 | -8/Garrison | Triggered checkpoint 3522 | -8/Garrison | Build established: Hacker-Gunner 3564 | -8/Garrison | Triggered checkpoint 3575 | -8/Garrison | Discovered new exit (range 14) 3628 | -8/Garrison | Expanded RIF knowledge: Patrol Navigation 3636 | -8/Garrison | Entered Factory 3637 | -7/Factory | Core integrity fell below 50% 3638 | -7/Factory | Reached level 13 3690 | -7/Factory | Reached level 14 3728 | -7/Factory | Upgraded with Utility slot (x1) 3762 | -7/Factory | Core integrity fell below 20% 4149 | -7/Factory | Discovered new exit (range 8) 4155 | -7/Factory | Identified exit to Factory 4295 | -7/Factory | Discovered exit to Factory (range 22) 4410 | -7/Factory | Sucked down chute 4410 | -7/Factory | Entered Waste 4424 | -7/Waste | Build established: Hacker-Skirmisher 4447 | -7/Waste | Spotted C-40 Crusher 4448 | -7/Waste | Spotted C-40 Crusher 4471 | -7/Waste | Spotted C-40 Crusher 4491 | -7/Waste | Spotted C-40 Crusher 4492 | -7/Waste | Spotted C-40 Crusher 4501 | -7/Waste | Spotted C-40 Crusher 4505 | -7/Waste | Discovered new exit (range 12) 4513 | -7/Waste | Warlord forces began an assault 4532 | -7/Waste | Allies destroyed C-40 Crusher 4535 | -7/Waste | Allies destroyed C-40 Crusher 4541 | -7/Waste | Allies destroyed C-40 Crusher 4544 | -7/Waste | Found Damper Plating 4544 | -7/Waste | Allies destroyed C-40 Crusher 4550 | -7/Waste | Allies destroyed C-40 Crusher 4552 | -7/Waste | Allies destroyed C-40 Crusher 4601 | -7/Waste | Identified exit to Factory 4613 | -7/Waste | Entered Factory 4613 | -7/Factory | Accompanied by 9 allies 4678 | -7/Factory | Identified exit to Lower Caves 4718 | -7/Factory | Reached level 15 4731 | -7/Factory | Build established: Hacker-Scout 5037 | -7/Factory | Repaired Nuclear Pulse Array 5163 | -7/Factory | Discovered exit to Factory (range 21) 5234 | -7/Factory | Reached level 16 5236 | -7/Factory | Upgraded with Propulsion slot (x1) 5239 | -7/Factory | Upgraded with Power slot (x1) 5472 | -7/Factory | Entered Lower Caves 5600 | -7/Lower Caves | Learned location of Zion (-7) 5662 | -7/Lower Caves | Learned location of 1 exit from Factory 5683 | -7/Lower Caves | Discovered new exit (range 11) 5686 | -7/Lower Caves | Identified exit to Lower Caves 5723 | -7/Lower Caves | Entered another Lower Caves area 5727 | -7/Lower Caves | Discovered exit to Factory (range 8) 5790 | -7/Lower Caves | Attracted the attention of an 0b10 outpost 5884 | -7/Lower Caves | Reached level 17 5905 | -7/Lower Caves | Destroyed 8 combat bots 6040 | -7/Lower Caves | Spotted B-75 Beast 6071 | -7/Lower Caves | Allies destroyed B-75 Beast 6091 | -7/Lower Caves | Learned 8 Factory zone layouts 6120 | -7/Lower Caves | Learned location of 1 exit from Proximity Caves 6145 | -7/Lower Caves | Discovered new exit (range 16) 6213 | -7/Lower Caves | Learned 4 Factory zone layouts 6303 | -7/Lower Caves | Identified exit to Zion 6306 | -7/Lower Caves | Entered Zion 6366 | -7/Zion | Acquired unknown access codes intercepted by a Zionite 6379 | -7/Zion | Visited the Megawrench Repair Shop 6380 | -7/Zion | Megawrench repaired 7 parts 6387 | -7/Zion | Discovered new exit (range 16) 6393 | -7/Zion | Identified exit to Proximity Caves 6393 | -7/Zion | Entered Proximity Caves 6395 | -6/Proximity Caves | Attracted the attention of an 0b10 checkpoint 6523 | -6/Proximity Caves | Reached level 18 6684 | -6/Proximity Caves | Entered Factory 6685 | -6/Factory | Identified exit to Factory 6686 | -6/Factory | Identified exit to Lower Caves 6697 | -6/Factory | Upgraded with Propulsion slot (x1) 6723 | -6/Factory | Found Prototype Processor 6723 | -6/Factory | Identified Exp. Targeting Computer 6800 | -6/Factory | Discovered exit to Factory (range 23) 6855 | -6/Factory | Reached level 19 6942 | -6/Factory | Garrison activated, responded to threat 7014 | -6/Factory | Upgraded with Utility slot (x1) 7015 | -6/Factory | Entered Lower Caves 7150 | -6/Lower Caves | Discovered new exit (range 14) 7154 | -6/Lower Caves | Identified exit to Lower Caves 7172 | -6/Lower Caves | Attracted the attention of an 0b10 outpost 7256 | -6/Lower Caves | Destroyed 9 combat bots 7409 | -6/Lower Caves | Entered another Lower Caves area 7409 | -6/Lower Caves | Accompanied by 2 allies 7419 | -6/Lower Caves | Reached level 20 7479 | -6/Lower Caves | Discovered new exit (range 13) 7489 | -6/Lower Caves | Identified exit to Data Miner 7512 | -6/Lower Caves | Learned 12 Factory zone layouts 7621 | -6/Lower Caves | Entered Data Miner 7621 | -6/Data Miner | Accompanied by 1 ally 7621 | -6/Data Miner | Discovered new exit (range 6) 7628 | -6/Data Miner | Met Data Miner 7636 | -6/Data Miner | Learned location of Section 7 (-2) 7636 | -6/Data Miner | Acquired the access code to Warlord's prototype stash 7640 | -6/Data Miner | Received God Mode back door access code from Data Miner 7645 | -6/Data Miner | Data Conduit disabled 7719 | -6/Data Miner | Found Prototype Device 7719 | -6/Data Miner | Identified Exp. Thermal Shield 7732 | -6/Data Miner | Identified exit to Proximity Caves 7732 | -6/Data Miner | Entered Proximity Caves 7864 | -5/Proximity Caves | Received a Behemoth hack from an annoying Tinkerer 8010 | -5/Proximity Caves | Attracted the attention of an 0b10 outpost 8011 | -5/Proximity Caves | Build established: Hacker-Tank 8083 | -5/Proximity Caves | Destroyed 7 combat bots 8120 | -5/Proximity Caves | Reached level 21 8130 | -5/Proximity Caves | Attracted the attention of an 0b10 checkpoint 8208 | -5/Proximity Caves | Destroyed 7 combat bots 8303 | -5/Proximity Caves | Learned location of 1 exit from Factory 8523 | -5/Proximity Caves | Destroyed 10 combat bots 8526 | -5/Proximity Caves | Discovered exit to Factory (range 12) 8572 | -5/Proximity Caves | Entered Factory 8573 | -5/Factory | Identified exit to Upper Caves 8574 | -5/Factory | Reached level 22 8583 | -5/Factory | Upgraded with Utility slot (x1) 8813 | -5/Factory | Identified exit to Garrison 8814 | -5/Factory | Entered Garrison 8825 | -5/Garrison | Spotted B-75 Beast 8848 | -5/Garrison | Triggered checkpoint 8902 | -5/Garrison | Reached level 23 8960 | -5/Garrison | Triggered checkpoint 8979 | -5/Garrison | Befriended a Behemoth using the annoying Tinkerer's hack 8991 | -5/Garrison | Upgraded with Propulsion slot (x1) 9092 | -5/Garrison | Discovered new exit (range 10) 9095 | -5/Garrison | Identified exit to Factory 9102 | -5/Garrison | Triggered checkpoint 9150 | -5/Garrison | Triggered checkpoint 9244 | -5/Garrison | Triggered checkpoint 9273 | -5/Garrison | Triggered checkpoint 9353 | -5/Garrison | Found Antimissile System 9376 | -5/Garrison | Triggered checkpoint 9454 | -5/Garrison | Triggered checkpoint 9505 | -5/Garrison | Discovered exit to Factory (range 14) 9564 | -5/Garrison | Build established: Hacker-Gunner 9600 | -5/Garrison | Triggered checkpoint 9714 | -5/Garrison | Discovered exit to Factory (range 12) 9736 | -5/Garrison | Expanded RIF knowledge: Alert ID Control 9792 | -5/Garrison | Triggered checkpoint 9799 | -5/Garrison | Garrison Relay disabled 9916 | -5/Garrison | Triggered checkpoint 9919 | -5/Garrison | Garrison Relay disabled 10019 | -5/Garrison | Entered Factory 10077 | -5/Factory | Build established: Hacker-Mutant 10566 | -5/Factory | Reached level 24 10605 | -5/Factory | Destroyed 7 combat bots 10619 | -5/Factory | First assault squad dispatched 10647 | -5/Factory | Build established: Hacker-Sprinter 10677 | -5/Factory | Discovered new exit (range 5) 10678 | -5/Factory | Identified exit to Factory 10791 | -5/Factory | Fabricated Exp. Terrain Scanner (x1) 10819 | -5/Factory | Entered another Factory area 10830 | -4/Factory | Discovered new exit (range 26) 10863 | -4/Factory | Identified exit to Upper Caves 10919 | -4/Factory | Identified exit to Extension 10973 | -4/Factory | Spotted B-86 Titan 11012 | -4/Factory | Entered Extension 11014 | -4/Extension | Reached level 25 11066 | -4/Extension | Crushed by falling debris 11069 | -4/Extension | Rescued a captive Derelict 11090 | -4/Extension | Rescued A7 11101 | -4/Extension | Rescued a captive Derelict 11102 | -4/Extension | Rescued a captive Derelict 11216 | -4/Extension | Crushed by falling debris 11459 | -4/Extension | Discovered new exit (range 29) 11463 | -4/Extension | Discovered new exit (range 28) 11472 | -4/Extension | Identified exit to Cetus 11487 | -4/Extension | Disrupted transfer network 11512 | -4/Extension | First assault squad dispatched 11513 | -4/Extension | Entered Cetus 11513 | -4/Cetus | Accompanied by 5 allies 11518 | -4/Cetus | Acquired a Cetus Manufacturing Module code from A7 11518 | -4/Cetus | Spotted Cetus Guard 11518 | -4/Cetus | Spotted Cetus Guard 11520 | -4/Cetus | Spotted Cetus Guard 11525 | -4/Cetus | Allies destroyed Cetus Guard 11525 | -4/Cetus | Spotted Cetus Guard 11534 | -4/Cetus | Allies destroyed Cetus Guard 11546 | -4/Cetus | Destroyed Cetus Guard 11549 | -4/Cetus | Destroyed Cetus Guard 11599 | -4/Cetus | Escorted A7 to Cetus Mainframe 11605 | -4/Cetus | Started Cetus Manufacturing Module 11620 | -4/Cetus | Discovered new exit (range 16) 11623 | -4/Cetus | Discovered new exit (range 28) 11624 | -4/Cetus | Spotted Cetus Guard 11624 | -4/Cetus | Spotted Cetus Guard 11630 | -4/Cetus | Manufactured an Enhanced Grunt 11653 | -4/Cetus | Spotted Cetus Guard 11653 | -4/Cetus | Spotted Cetus Guard 11655 | -4/Cetus | Manufactured an Enhanced Grunt 11657 | -4/Cetus | Destroyed Cetus Guard 11657 | -4/Cetus | Reached level 26 11660 | -4/Cetus | Allies destroyed Cetus Guard 11666 | -4/Cetus | Allies destroyed Cetus Guard 11667 | -4/Cetus | Destroyed Cetus Guard 11680 | -4/Cetus | Manufactured an Enhanced Grunt 11694 | -4/Cetus | Met Revision 17 11705 | -4/Cetus | Manufactured an Enhanced Grunt 11730 | -4/Cetus | Manufactured an Enhanced Grunt 11789 | -4/Cetus | Identified exit to Archives 11812 | -4/Cetus | Entered Archives 11812 | -4/Archives | Accompanied by 6 allies 11817 | -4/Archives | Received a hacking code to weaken MAIN.C 11826 | -4/Archives | Discovered new exit (range 27) 11830 | -4/Archives | Discovered new exit (range 18) 11834 | -4/Archives | Discovered new exit (range 25) 11846 | -4/Archives | Identified exit to Hub_04(d) 11867 | -4/Archives | Entered Hub_04(d) 11867 | -4/Hub_04(d) | Accompanied by 5 allies 11885 | -4/Hub_04(d) | Discovered new exit (range 26) 11919 | -4/Hub_04(d) | Garrison activated, responded to threat 11923 | -4/Hub_04(d) | Discovered new exit (range 14) 11927 | -4/Hub_04(d) | Identified exit to Research 11996 | -4/Hub_04(d) | Build established: Hacker-Scout 12012 | -4/Hub_04(d) | Reached level 27 12087 | -4/Hub_04(d) | Network Hub disabled 12129 | -4/Hub_04(d) | Spotted Lightning 12134 | -4/Hub_04(d) | Spotted Lightning 12137 | -4/Hub_04(d) | Spotted Lightning 12145 | -4/Hub_04(d) | Allies destroyed Lightning 12158 | -4/Hub_04(d) | Allies destroyed Lightning 12167 | -4/Hub_04(d) | Spotted Lightning 12169 | -4/Hub_04(d) | Spotted Lightning 12178 | -4/Hub_04(d) | Destroyed Lightning 12186 | -4/Hub_04(d) | Spotted Lightning 12219 | -4/Hub_04(d) | Destroyed Lightning 12233 | -4/Hub_04(d) | Destroyed Lightning 12247 | -4/Hub_04(d) | Destroyed Lightning 12252 | -4/Hub_04(d) | Found Prototype Energy Cannon 12252 | -4/Hub_04(d) | Identified EMDS 12284 | -4/Hub_04(d) | Found Prototype Device 12284 | -4/Hub_04(d) | Identified Exp. Phase Shifter 12293 | -4/Hub_04(d) | Found Prototype Device 12293 | -4/Hub_04(d) | Identified EM Dispersion Field 12357 | -4/Hub_04(d) | Found Quantum Capacitor 12381 | -4/Hub_04(d) | Spotted Lightning 12401 | -4/Hub_04(d) | Network Hub disabled 12438 | -4/Hub_04(d) | Spotted Lightning 12475 | -4/Hub_04(d) | Network Hub disabled 12478 | -4/Hub_04(d) | Spotted Lightning 12484 | -4/Hub_04(d) | Spotted Lightning 12484 | -4/Hub_04(d) | Spotted Lightning 12484 | -4/Hub_04(d) | Spotted Lightning 12489 | -4/Hub_04(d) | Network Hub disabled 12506 | -4/Hub_04(d) | Entered Research 12508 | -3/Research | Reached level 28 12510 | -3/Research | Upgraded with Utility slot (x1) 12644 | -3/Research | Discovered new exit (range 26) 12770 | -3/Research | Discovered new exit (range 24) 12783 | -3/Research | Identified exit to Quarantine 12802 | -3/Research | First assault squad dispatched 12883 | -3/Research | Entered Quarantine 12954 | -3/Quarantine | Found Alien Impact Weapon 12954 | -3/Quarantine | Identified Core Stripper 13028 | -3/Quarantine | Discovered new exit (range 9) 13032 | -3/Quarantine | Found Alien Artifact 13033 | -3/Quarantine | Identified exit to Research 13151 | -3/Quarantine | Entered Research 13153 | -2/Research | Reached level 29 13153 | -2/Research | Reached level 30 13163 | -2/Research | Identified exit to Testing 13181 | -2/Research | Found Prototype Processor 13181 | -2/Research | Identified Spectral Analyzer 13329 | -2/Research | Core integrity fell below 50% 13493 | -2/Research | Discovered new exit (range 29) 13523 | -2/Research | Found Prototype Device 13523 | -2/Research | Identified Exp. Cloaking Device 13705 | -2/Research | Identified exit to Access 13743 | -2/Research | Upgraded with Power slot (x1) 13743 | -2/Research | Upgraded with Propulsion slot (x1) 13760 | -2/Research | Discovered exit to Access (range 26) 13843 | -2/Research | Entered Testing 13845 | -2/Testing | Reached level 31 13848 | -2/Testing | Found Exp. Signal Interpreter 13868 | -2/Testing | Found Prototype Leg 13868 | -2/Testing | Identified Myomer Exoskeleton 13901 | -2/Testing | Protovariant out of control (PP-G2GESNGEQV) 13901 | -2/Testing | Unleashed a protovariant (PP-G2GESNGEQV) 13925 | -2/Testing | Found Prototype Energy Cannon 13925 | -2/Testing | Identified Null Cannon 13951 | -2/Testing | Found Prototype Device 13951 | -2/Testing | Identified Exp. Thermal Defense Suite 13967 | -2/Testing | Discovered exit to Access (range 15) 13981 | -2/Testing | Found Prototype Energy Cannon 13984 | -2/Testing | Identified Disintegrator 14006 | -2/Testing | Spotted PP-G2GESNGEQV 14022 | -2/Testing | Destroyed PP-G2GESNGEQV 14040 | -2/Testing | Found Prototype Launcher 14040 | -2/Testing | Identified Containment Facilitator 14045 | -2/Testing | Identified Core Reset Matrix 14065 | -2/Testing | Found Prototype Launcher 14065 | -2/Testing | Identified Z-bomb Delivery System 14124 | -2/Testing | Found Prototype Energy Gun 14124 | -2/Testing | Identified Tachyon Dispersion Ray 14149 | -2/Testing | Found Prototype Processor 14149 | -2/Testing | Identified Exp. Core Analyzer 14170 | -2/Testing | Spotted Fortress 14185 | -2/Testing | Discovered new exit (range 9) 14186 | -2/Testing | Identified exit to Section 7 14186 | -2/Testing | Entered Section 7 14188 | -2/Section 7 | Reached level 32 14190 | -2/Section 7 | Build established: Generator-Scout 14204 | -2/Section 7 | Found Alien Artifact 14226 | -2/Section 7 | Discovered exit to Access (range 22) 14243 | -2/Section 7 | Spotted B-90 Cyclops 14244 | -2/Section 7 | Spotted S7 Guard 14250 | -2/Section 7 | Found Alien Artifact 14275 | -2/Section 7 | Identified Integrated Dissipator 14275 | -2/Section 7 | Identified Integrated Singularity Reactor 14276 | -2/Section 7 | Installed Integrated Singularity Reactor, increased core energy generation (+2%) 14278 | -2/Section 7 | Installed Integrated Dissipator, increased core heat dissipation (+2%) 14286 | -2/Section 7 | Allied Derelicts emerged from ambush trap array 14326 | -2/Section 7 | Garrison activated, responded to threat 14357 | -2/Section 7 | Reached level 33 14363 | -2/Section 7 | Scanned by Researcher 14404 | -2/Section 7 | Spotted Alpha 7 14405 | -2/Section 7 | Spotted Alpha 7 14407 | -2/Section 7 | Destroyed 26 combat bots 14409 | -2/Section 7 | Found Integrated Dissipator 14409 | -2/Section 7 | Installed Integrated Dissipator, increased core heat dissipation (+2%) 14471 | -2/Section 7 | Intercept squad dispatched 14483 | -2/Section 7 | Spotted Tracker 14483 | -2/Section 7 | Spotted Tracker 14484 | -2/Section 7 | Destroyed Tracker 14485 | -2/Section 7 | Destroyed Tracker 14489 | -2/Section 7 | Found Prototype Energy Gun 14489 | -2/Section 7 | Identified Immobilizer 14545 | -2/Section 7 | Spotted Combat Programmer 14552 | -2/Section 7 | Found Alien Artifact 14552 | -2/Section 7 | Identified Integrated Reactor 14552 | -2/Section 7 | Installed Integrated Reactor, increased core energy generation (+2%) 14552 | -2/Section 7 | Spotted Combat Programmer 14630 | -2/Section 7 | Spotted B-99 Colossus 14652 | -2/Section 7 | Destroyed Combat Programmer 14653 | -2/Section 7 | Intercept squad dispatched 14662 | -2/Section 7 | Spotted Tracker 14663 | -2/Section 7 | Spotted Tracker 14664 | -2/Section 7 | Spotted Tracker 14681 | -2/Section 7 | Destroyed Tracker 14698 | -2/Section 7 | Spotted Combat Programmer 14698 | -2/Section 7 | Spotted Combat Programmer 14699 | -2/Section 7 | Spotted Combat Programmer 14713 | -2/Section 7 | System corruption reached 10% 14736 | -2/Section 7 | Destroyed Combat Programmer 14740 | -2/Section 7 | Destroyed Combat Programmer 14742 | -2/Section 7 | Destroyed Combat Programmer 14761 | -2/Section 7 | Found Alien Artifact 14764 | -2/Section 7 | Identified LRC Boosters 14764 | -2/Section 7 | Installed LRC Boosters, increased mass support (+10) 14766 | -2/Section 7 | Found LRC Boosters 14766 | -2/Section 7 | Installed LRC Boosters, increased mass support (+10) 14789 | -2/Section 7 | Found Integrated Reactor 14789 | -2/Section 7 | Installed Integrated Reactor, increased core energy generation (+2%) 14790 | -2/Section 7 | Found Integrated Reactor 14790 | -2/Section 7 | Installed Integrated Reactor, increased core energy generation (+2%) 14823 | -2/Section 7 | Found Alien Artifact 14828 | -2/Section 7 | Found Alien Artifact 14866 | -2/Section 7 | Found Alien Artifact 14866 | -2/Section 7 | Identified Terrabomb 14866 | -2/Section 7 | Used Terrabomb 14928 | -2/Section 7 | Intercept squad dispatched 14936 | -2/Section 7 | Spotted Tracker 14936 | -2/Section 7 | Spotted Tracker 14937 | -2/Section 7 | Spotted Tracker 14939 | -2/Section 7 | Spotted Tracker 14942 | -2/Section 7 | Destroyed Tracker 14950 | -2/Section 7 | Destroyed Tracker 14958 | -2/Section 7 | Destroyed Tracker 14961 | -2/Section 7 | High security lockdown imminent 14961 | -2/Section 7 | Destroyed Tracker 14978 | -2/Section 7 | Spotted Combat Programmer 14979 | -2/Section 7 | Spotted Combat Programmer 14979 | -2/Section 7 | Spotted Combat Programmer 14980 | -2/Section 7 | Spotted Combat Programmer 14982 | -2/Section 7 | Destroyed 7 combat bots 14982 | -2/Section 7 | Found Alien Artifact 14982 | -2/Section 7 | Identified Transdimensional Reconstructor 14982 | -2/Section 7 | Warped through subspace 14990 | -2/Section 7 | Identified Matter Drive (x2) 15020 | -2/Section 7 | Found Integrated Dissipator 15020 | -2/Section 7 | Installed Integrated Dissipator, increased core heat dissipation (+2%) 15041 | -2/Section 7 | High security lockdown engaged 15065 | -2/Section 7 | Crushed by falling debris 15066 | -2/Section 7 | Core integrity fell below 20% 15076 | -2/Section 7 | Crushed by falling debris 15076 | -2/Section 7 | Smashed by cave-in Last Messages --------------- Triggered Stasis Trap. A bubble of rippling energy engulfs the area. Field strength at 72. Field strength at 44. Field strength at 16. ALERT: Performing unscheduled system reset. Stasis field depleted. System corrupted: Matter fused (-10). ALERT: Lockdown in effect, collecting threat data. System corrupted: Energy discharge (-151). ALERT: Assault forces dispatched. The unstable cave ceiling collapses. Crushed by falling debris. EM Dispersion Field destroyed. System corrupted by crushing effect (+1). Xenon Bombardment Thruster destroyed. System corrupted by crushing effect (+1). System corrupted: Component data lost. The unstable cave ceiling collapses. Crushed by falling debris. Map ----- +----------------------------------------------------+ | ################## """ """ ###### | | ################## """ """ ###### | | ################## """ """ ###### ########## | | ################## ###### ########## | | ##"""T"""## ###### ########## | | ##" " """########s########### ########## | | * ^ ########## | | %= ^ ########## | | ###[ " ""^""""" ########## | | ## %""""" """"" ########## | | ## """"" """""^ ####+####+################ | | ## s ^ #### ]############## | | ## """"" """"" #### """ ############## | | ## ^""""" """"" ""##! """ ############## | | ## """"" """"" ""##*[""" ""# " | | ## ""## =""" """ """""""" | | ## """"" """"" T#![ """ T"" " """7""7 | | ## """"" """"" ""## """ """ ####""T""##### | | ### """"" """! ! ""##* """ """ ####"" ""##### | | ### [%%! g""## " ### | | ### !! #####""T""##" ### """ """ | | ### "T" #####"""""## ### """ """ | | ### ######+######+############### ### """ """ | | ### ### # ######## ### ! | | ### # ######## ###! ! | | #######! # ""@ ############## | | ###### = "s # """; ##### | | #######[ = """ # """ R"; ####"" " " | | ####### T" # " " """#############"" """ """ | | ####### ! """ # """ ""#############"" """" """ | | ####### "" # Y #############G """ *""! | | ####### ###### ################"" [%%** | | ######################################"" " [["! | | ######################################"" """ """ | | ######################################## """" """ | | ########################################] """ """ | | ######################################## | | ######################################## | | ################################################## | | ######################################### ### | | ####################################""" """### | | ####################################"" #*# | | ################################## ] [%=# * | | ##################################! ! =[# | | ################################## # | | ################################## #% | | ################################## %%+! | | ################################## #% | | ################################## *% # | | ###################################### !#+#### % | +----------------------------------------------------+ Best States ------------- Heat Dissipation 175 Energy Generation 131 Energy Capacity 810 Matter Stores 300 Matter Capacity 300 Sight Range 18 Robot Scan Range 26 Terrain Scan Range 30 Terrain Scan Density 810 Power Amplification 30 Additional Mass Support 25 Armor Coverage 1200 Resistance: KI 20 Resistance: TH 30 Resistance: EM 90 Point Defense Rating 240 Phase Shifting 20 Evasion (%) 97 Targeting Accuracy 16 Core Analysis 8 Recoil Reduction 2 Energy Filtering 50 Particle Charging 15 Salvage Targeting 3 Offensive Hacking 25 Defensive Hacking 20 Item Schematics ----------------- Combat Drone Bay | -6/Data Miner | Free Lgt. Regenerative Plating | -6/Data Miner | Free Cmb. Gravmag System | -6/Data Miner | Free Triangulator | -6/Data Miner | Free Exp. Terrain Scanner | -6/Data Miner | Free Exp. Cesium-ion Thruster | -6/Data Miner | Free Kinetic Spear | -6/Data Miner | Free Cloaking Device | -6/Data Miner | Free Exp. Transmission Jammer | -6/Data Miner | Free Exp. Targeting Computer | -6/Data Miner | Free Reaction Control System | -3/Research | Scanalyzed Robot Schematics ------------------ S-27 Virus | -6/Data Miner | Free G-50 Soldier | -6/Data Miner | Free L-41 Fighter | -6/Data Miner | Free X-72 Disruptor | -6/Data Miner | Free H-66 Slayer | -6/Data Miner | Free I-36 Angel | -6/Data Miner | Free Fabricated ------------ Exp. Terrain Scanner | x1 | -5/Factory Alien Tech Used ----------------- Core Stripper Integrated Singularity Reactor Integrated Dissipator Integrated Reactor LRC Boosters Terrabomb Transdimensional Reconstructor Matter Drive Achievements -------------- Rampage Speed Demon Supersonic Woof! Challenges ------------ None RPGLIKE | -11 -10 -10 -9 -8 -8 -8 -8 -7 -7 -7 -7 -7 -7 -6 -6 -6 -6 -6 -5 -5 -5 -5 -4 -4 -4 -4 -4 -3 -3 -2 -2 -2 --------- Run | Scr Mat Min Mat Mat Gar Mat Gar Fac Was Fac Low Low Zio Pro Fac Low Low Dat Pro Fac Gar Fac Fac Ext Cet Arc Hub Res Qua Res Tes Sec Levels Raised 32 | . . 1 5 4 . 1 . 2 . 2 . 1 . 1 1 . 1 . 1 1 1 1 . 1 1 . 1 1 . 2 1 2 XP Earned 52147 | 3000 1300 1650 7351 5284 664 646 1089 2301 199 2370 496 1053 118 1367 1384 1007 291 152 2686 1268 1262 840 750 1448 963 318 1553 1253 744 3165 1447 2728 XP Spent 48910 | 2950 . . 5220 3345 3925 3040 520 3460 . 2600 . . . . 3740 510 . 2000 . 2300 2100 . 975 1850 . 1675 . 2600 . 3100 1500 1500 Upgrades 112 | 10 . . 25 8 17 6 2 9 . 5 . . . . 4 3 . 4 . 1 3 . 3 2 . 3 . 1 . 3 2 1 Power Slot 2 | . . . . . . . . . . 1 . . . . . . . . . . . . . . . . . . . 1 . . Propulsion Slot 5 | 1 . . . . . . . . . 1 . . . . 1 . . . . . 1 . . . . . . . . 1 . . Utility Slot 8 | 1 . . 1 2 . . . 1 . . . . . . 1 . . . . 1 . . . . . . . 1 . . . . Weapon Slot 3 | 1 . . . . . 2 . . . . . . . . . . . . . . . . . . . . . . . . . . Core Integrity 25 | . . . 4 4 15 . 2 . . . . . . . . . . . . . . . . . . . . . . . . . Heat Dissipation 15 | 1 . . 2 . . 2 . 8 . . . . . . 2 . . . . . . . . . . . . . . . . . Energy Generation 4 | 1 . . 1 . . . . . . . . . . . . . . . . . . . . 2 . . . . . . . . Energy Storage 2 | . . . . . . . . . . . . . . . . . . . . . . . . . . 2 . . . . . . Mass Support 8 | 2 . . . . . . . . . 2 . . . . . . . 1 . . . . . . . . . . . 1 2 . Inventory Capacity 6 | . . . 3 . . . . . . . . . . . . . . 1 . . . . . . . 1 . . . . . 1 Sensor Range 13 | . . . 8 2 . . . . . . . . . . . . . . . . . . 3 . . . . . . . . . Terrain Scan Density 8 | . . . 5 . . . . . . . . . . . . 3 . . . . . . . . . . . . . . . . Ranged Accuracy 4 | 1 . . 1 . 2 . . . . . . . . . . . . . . . . . . . . . . . . . . . Hack Attack % 3 | 1 . . . . . 1 . . . 1 . . . . . . . . . . . . . . . . . . . . . . Hack Defense % 2 | 1 . . . . . 1 . . . . . . . . . . . . . . . . . . . . . . . . . . TH Resistance % 2 | . . . . . . . . . . . . . . . . . . 2 . . . . . . . . . . . . . . TH Damage % 2 | . . . . . . . . . . . . . . . . . . . . . 2 . . . . . . . . . . . Protomatter Created 7451 | . 56 58 306 603 42 195 219 71 . 466 162 390 . 48 118 439 . . 767 50 612 225 . 161 245 80 729 . . 256 34 1119 Integrity Restored 15771 | . 168 174 912 1219 . 585 525 213 516 1455 480 982 . 144 96 827 163 75 1636 . 879 507 . 944 401 15 469 . . 483 288 1615 Core 13952 | . 168 174 912 1219 . 585 525 213 516 1455 352 901 . 144 96 661 163 75 1254 . 693 507 . 874 136 . 128 . . 483 288 1430 Parts 1819 | . . . . . . . . . . . 128 81 . . . 166 . . 382 . 186 . . 70 265 15 341 . . . . 185 Protomatter Decayed 4298 | . . . 2 133 84 . 44 . 16 192 . 105 . . 86 262 128 63 316 50 563 107 . 290 231 . 781 . . 162 159 524 Game ------ Seed ReflectiveWeaponCompactor Manual? 0 Play Time 04:24:50 Cumulative 92.2 hours Start 2019.12.18 @ 03:09:03 End 2019.12.18 @ 07:31:03 Sessions 1 Manual Loads 0 Difficulty Rogue Special Mode Winter2019/RPGLIKE Game No. 195 Rogue 195 Adventurer 0 Explorer 0 Win Type - Total 1 Types 1/0/0/0/0/0/0 Lore% 79 Gallery% 71 Achievement% 59 Wizard Run 0 Options --------- ASCII 0 Keyboard 0 Movement Numpad Keybinds 0 Fullscreen 1 Font 24/Smallcaps Map View 76x50 Tactical HUD 0 Map Filters NONE Filters NONE Steam 1 RUN: 59a08260-5a8c-45fa-bcd8-b48c97d53b58